Workbook

Sheet Sheet1
A1: 55
A2: 5.33 | G2: =CurrText(A1,1,"درجة","درجات",2) -> خمس وخمسون درجة فقط لاغير
A3: 88.3 | G3: =CurrText(A2,1,"درجة","درجات",2) -> خمس درجات وثلاث وثلاثون بالمائة من الدرجة فقط لاغير
G4: ثمان وثمانون درجة وثلاثون بالمائة من الدرجة فقط لاغير
A6: 5.55
G7: خمس درجات وخمس وخمسون بالمائة من الدرجة فقط لاغير

Sheet ورقة1
A1: الجمهورية العربية السورية
A2: وزارة التعليم العالي
A3: المعهد الوطني للإدارة العامة
A5: نتائج متدربي الدورة التدريسية الثالثة عشرة خلال السنة الأولى
A7: تسلسل | B7: الاسم الثلاثي | C7: فترة التدريب الأولى (10) درجات | E7: مرحلة التأهيل الأكاديمي والتطبيقي (8) درجات | H7: الحالات العملية (12) درجات | I7: تمارين تطبيقية (8) درجات | J7: اللغة الأجنبية (4) درجات | P7: المعلوماتية (2) درجة | S7: المجموع النهائي (44) درجة
E8: الوحـــدة الأولى "القانون وإدارة المرافق العامة" | F8: الوحـــــــدة الثانية "الاقتصاد والمالية العامة وإدارة علاقات التعاون الدولي" | G8: المجموع | J8: اللغة الفرنسية (2) درجة | M8: اللغة الانكليزية (2) درجة
J9: امتحان اول | K9: امتحان ثاني | L9: الدرجة | M9: امتحان اول | N9: امتحان ثاني | O9: الدرجة | P9: امتحان اول | Q9: امتحان ثاني | R9: الدرجة
A11: 1 | B11: ='[1]بيانات تدريسية 13'!K2 -> إحسان خالد خليل | C11: ='[1]فترة التدريب الأولى'!N8 -> 24.7 | D11: =C11/3 -> 8.233333333 | E11: ='[1]القانون وادارة المرافق العامة'!E8 -> 64 | F11: ='[1]الاقتصاد وادارة علاقات'!E8 -> 69 | G11: =((E11/25+F11/25)) -> 5.32 | H11: ='[1]الحالات العملية سنة اولى'!P12 -> 10.6547619 | I11: ='[1]التمارين التطبيقية سنة اولى'!O12 -> 6.397333333 | J11: ='[1]فرنسي قانون وادارة مرافق عامة'!H8 -> 44.62 | K11: ='[1]فرنسي ايلول - ك1'!H8 -> 48.3 | L11: =(K11/100+J11/100) -> 0.9292 | M11: ='[1]إنكليزي قانون وادارة مرافق عامة'!H8 -> 68 | N11: ='[1]انكليزي ايلول - ك1'!J8 -> 73.8 | O11: =(N11/100+M11/100) -> 1.418 | P11: ='[1]معلوماتية نيسان 2016'!F8 -> 58.5 | Q11: ='[1]معلوماتية كانون اول'!F8 -> 55 | R11: =(Q11/100+P11/100) -> 1.135 | S11: =(R11+O11+L11+I11+H11+G11+D11) -> 34.08762857
A12: 2 | B12: ='[1]بيانات تدريسية 13'!K3 -> ايهاب عبد الرحمن القطريب | C12: ='[1]فترة التدريب الأولى'!N9 -> 25.5 | D12: =C12/3 -> 8.5 | E12: ='[1]القانون وادارة المرافق العامة'!E9 -> 58 | F12: ='[1]الاقتصاد وادارة علاقات'!E9 -> 76 | G12: =((E12/25+F12/25)) -> 5.36 | H12: ='[1]الحالات العملية سنة اولى'!P13 -> 10.37619048 | I12: ='[1]التمارين التطبيقية سنة اولى'!O13 -> 6.196666667 | J12: ='[1]فرنسي قانون وادارة مرافق عامة'!H9 -> 70.69 | K12: ='[1]فرنسي ايلول - ك1'!H9 -> 77.45 | L12: =(K12/100+J12/100) -> 1.4814 | M12: ='[1]إنكليزي قانون وادارة مرافق عامة'!H9 -> 85.37 | N12: ='[1]انكليزي ايلول - ك1'!J9 -> 86.25 | O12: =(N12/100+M12/100) -> 1.7162 | P12: ='[1]معلوماتية نيسان 2016'!F9 -> 85 | Q12: ='[1]معلوماتية كانون اول'!F9 -> 88 | R12: =(Q12/100+P12/100) -> 1.73 | S12: 35.36045714
A13: 3 | B13: ='[1]بيانات تدريسية 13'!K4 -> ثائر علي ديوب | C13: ='[1]فترة التدريب الأولى'!N10 -> 26 | D13: 8.666666667 | E13: ='[1]القانون وادارة المرافق العامة'!E10 -> 65 | F13: ='[1]الاقتصاد وادارة علاقات'!E10 -> 69 | G13: 5.36 | H13: ='[1]الحالات العملية سنة اولى'!P14 -> 10.91285714 | I13: ='[1]التمارين التطبيقية سنة اولى'!O14 -> 6.369333333 | J13: ='[1]فرنسي قانون وادارة مرافق عامة'!H10 -> 84.3 | K13: ='[1]فرنسي ايلول - ك1'!H10 -> 80.4 | L13: 1.647 | M13: ='[1]إنكليزي قانون وادارة مرافق عامة'!H10 -> 61 | N13: ='[1]انكليزي ايلول - ك1'!J10 -> 78.25 | O13: 1.3925 | P13: ='[1]معلوماتية نيسان 2016'!F10 -> 83.5 | Q13: ='[1]معلوماتية كانون اول'!F10 -> 81.5 | R13: 1.65 | S13: 35.99835714
A14: 4 | B14: ='[1]بيانات تدريسية 13'!K5 -> حلا عبد الله علي | C14: ='[1]فترة التدريب الأولى'!N11 -> 23 | D14: 7.666666667 | E14: ='[1]القانون وادارة المرافق العامة'!E11 -> 60 | F14: ='[1]الاقتصاد وادارة علاقات'!E11 -> 83 | G14: 5.72 | H14: ='[1]الحالات العملية سنة اولى'!P15 -> 10.48647619 | I14: ='[1]التمارين التطبيقية سنة اولى'!O15 -> 6.692 | J14: ='[1]فرنسي قانون وادارة مرافق عامة'!H11 -> 70.66 | K14: ='[1]فرنسي ايلول - ك1'!H11 -> 64.4 | L14: 1.3506 | M14: ='[1]إنكليزي قانون وادارة مرافق عامة'!H11 -> 88.62 | N14: ='[1]انكليزي ايلول - ك1'!J11 -> 92.25 | O14: 1.8087 | P14: ='[1]معلوماتية نيسان 2016'!F11 -> 84.5 | Q14: ='[1]معلوماتية كانون اول'!F11 -> 77 | R14: 1.615 | S14: 35.33944286
A15: 5 | B15: ='[1]بيانات تدريسية 13'!K6 -> خالد عبد الرزاق سالم | C15: ='[1]فترة التدريب الأولى'!N12 -> 25.2 | D15: 8.4 | E15: ='[1]القانون وادارة المرافق العامة'!E12 -> 64 | F15: ='[1]الاقتصاد وادارة علاقات'!E12 -> 77 | G15: 5.64 | H15: ='[1]الحالات العملية سنة اولى'!P16 -> 10.8747619 | I15: ='[1]التمارين التطبيقية سنة اولى'!O16 -> 6.924 | J15: ='[1]فرنسي قانون وادارة مرافق عامة'!H12 -> 58.35 | K15: ='[1]فرنسي ايلول - ك1'!H12 -> 63.1 | L15: 1.2145 | M15: ='[1]إنكليزي قانون وادارة مرافق عامة'!H12 -> 74 | N15: ='[1]انكليزي ايلول - ك1'!J12 -> 73.75 | O15: 1.4775 | P15: ='[1]معلوماتية نيسان 2016'!F12 -> 81.5 | Q15: ='[1]معلوماتية كانون اول'!F12 -> 91 | R15: 1.725 | S15: 36.2557619
A16: 6 | B16: ='[1]بيانات تدريسية 13'!K7 -> دارين عبد الحنان بلال | C16: ='[1]فترة التدريب الأولى'!N13 -> 22.5 | D16: 7.5 | E16: ='[1]القانون وادارة المرافق العامة'!E13 -> 66 | F16: ='[1]الاقتصاد وادارة علاقات'!E13 -> 77 | G16: 5.72 | H16: ='[1]الحالات العملية سنة اولى'!P17 -> 10.33619048 | I16: ='[1]التمارين التطبيقية سنة اولى'!O17 -> 6.266666667 | J16: ='[1]فرنسي قانون وادارة مرافق عامة'!H13 -> 67.9 | K16: ='[1]فرنسي ايلول - ك1'!H13 -> 40.4 | L16: 1.083 | M16: ='[1]إنكليزي قانون وادارة مرافق عامة'!H13 -> 56 | N16: ='[1]انكليزي ايلول - ك1'!J13 -> 75.25 | O16: 1.3125 | P16: ='[1]معلوماتية نيسان 2016'!F13 -> 73 | Q16: ='[1]معلوماتية كانون اول'!F13 -> 74.5 | R16: 1.475 | S16: 33.69335714
A17: 7 | B17: ='[1]بيانات تدريسية 13'!K8 -> دانيال عدنان علي | C17: ='[1]فترة التدريب الأولى'!N14 -> 28.45 | D17: 9.483333333 | E17: ='[1]القانون وادارة المرافق العامة'!E14 -> 69 | F17: ='[1]الاقتصاد وادارة علاقات'!E14 -> 78 | G17: 5.88 | H17: ='[1]الحالات العملية سنة اولى'!P18 -> 10.80552381 | I17: ='[1]التمارين التطبيقية سنة اولى'!O18 -> 6.732666667 | J17: ='[1]فرنسي قانون وادارة مرافق عامة'!H14 -> 62.6 | K17: ='[1]فرنسي ايلول - ك1'!H14 -> 52.4 | L17: 1.15 | M17: ='[1]إنكليزي قانون وادارة مرافق عامة'!H14 -> 70.37 | N17: ='[1]انكليزي ايلول - ك1'!J14 -> 86.75 | O17: 1.5712 | P17: ='[1]معلوماتية نيسان 2016'!F14 -> 86 | Q17: ='[1]معلوماتية كانون اول'!F14 -> 90 | R17: 1.76 | S17: 37.38272381
A18: 8 | B18: ='[1]بيانات تدريسية 13'!K9 -> ديما أيمن طاهر | C18: ='[1]فترة التدريب الأولى'!N15 -> 23.9 | D18: 7.966666667 | E18: ='[1]القانون وادارة المرافق العامة'!E15 -> 55 | F18: ='[1]الاقتصاد وادارة علاقات'!E15 -> 65 | G18: 4.8 | H18: ='[1]الحالات العملية سنة اولى'!P19 -> 10.72171429 | I18: ='[1]التمارين التطبيقية سنة اولى'!O19 -> 6.187333333 | J18: ='[1]فرنسي قانون وادارة مرافق عامة'!H15 -> 81.33 | K18: ='[1]فرنسي ايلول - ك1'!H15 -> 67.75 | L18: 1.4908 | M18: ='[1]إنكليزي قانون وادارة مرافق عامة'!H15 -> 60.62 | N18: ='[1]انكليزي ايلول - ك1'!J15 -> 70.25 | O18: 1.3087 | P18: ='[1]معلوماتية نيسان 2016'!F15 -> 84.5 | Q18: ='[1]معلوماتية كانون اول'!F15 -> 91 | R18: 1.755 | S18: 34.23021429
A19: 9 | B19: ='[1]بيانات تدريسية 13'!K10 -> راما محمد طوبال علي | C19: ='[1]فترة التدريب الأولى'!N16 -> 26.87 | D19: 8.956666667 | E19: ='[1]القانون وادارة المرافق العامة'!E16 -> 65 | F19: ='[1]الاقتصاد وادارة علاقات'!E16 -> 76 | G19: 5.64 | H19: ='[1]الحالات العملية سنة اولى'!P20 -> 10.48095238 | I19: ='[1]التمارين التطبيقية سنة اولى'!O20 -> 6.070666667 | J19: ='[1]فرنسي قانون وادارة مرافق عامة'!H16 -> 74.74 | K19: ='[1]فرنسي ايلول - ك1'!H16 -> 76.85 | L19: 1.5159 | M19: ='[1]إنكليزي قانون وادارة مرافق عامة'!H16 -> 72.87 | N19: ='[1]انكليزي ايلول - ك1'!J16 -> 73.75 | O19: 1.4662 | P19: ='[1]معلوماتية نيسان 2016'!F16 -> 89.5 | Q19: ='[1]معلوماتية كانون اول'!F16 -> 70.5 | R19: 1.6 | S19: 35.73038571
A20: 10 | B20: ='[1]بيانات تدريسية 13'!K11 -> رشا محمود عباس | C20: ='[1]فترة التدريب الأولى'!N17 -> 24.5 | D20: 8.166666667 | E20: ='[1]القانون وادارة المرافق العامة'!E17 -> 55 | F20: ='[1]الاقتصاد وادارة علاقات'!E17 -> 71 | G20: 5.04 | H20: ='[1]الحالات العملية سنة اولى'!P21 -> 10.75619048 | I20: ='[1]التمارين التطبيقية سنة اولى'!O21 -> 6.316 | J20: ='[1]فرنسي قانون وادارة مرافق عامة'!H17 -> 70.12 | K20: ='[1]فرنسي ايلول - ك1'!H17 -> 51.85 | L20: 1.2197 | M20: ='[1]إنكليزي قانون وادارة مرافق عامة'!H17 -> 72.12 | N20: ='[1]انكليزي ايلول - ك1'!J17 -> 75 | O20: 1.4712 | P20: ='[1]معلوماتية نيسان 2016'!F17 -> 89 | Q20: ='[1]معلوماتية كانون اول'!F17 -> 90 | R20: 1.79 | S20: 34.75975714
A21: 11 | B21: ='[1]بيانات تدريسية 13'!K12 -> رنيم غسان سلطان | C21: ='[1]فترة التدريب الأولى'!N18 -> 23.5 | D21: 7.833333333 | E21: ='[1]القانون وادارة المرافق العامة'!E18 -> 55 | F21: ='[1]الاقتصاد وادارة علاقات'!E18 -> 0 | G21: 2.2 | H21: ='[1]الحالات العملية سنة اولى'!P22 -> 10.7447619 | I21: ='[1]التمارين التطبيقية سنة اولى'!O22 -> 3.946666667 | J21: ='[1]فرنسي قانون وادارة مرافق عامة'!H18 -> 70.82 | K21: ='[1]فرنسي ايلول - ك1'!H18 -> 3.9 | L21: 0.7472 | M21: ='[1]إنكليزي قانون وادارة مرافق عامة'!H18 -> 80.75 | N21: ='[1]انكليزي ايلول - ك1'!J18 -> 11.75 | O21: 0.925 | P21: ='[1]معلوماتية نيسان 2016'!F18 -> 70 | Q21: ='[1]معلوماتية كانون اول'!F18 -> 5 | R21: 0.75 | S21: 27.1469619
A22: 12 | B22: ='[1]بيانات تدريسية 13'!K13 -> رنيم ابراهيم صقر | C22: ='[1]فترة التدريب الأولى'!N19 -> 24 | D22: 8 | E22: ='[1]القانون وادارة المرافق العامة'!E19 -> 59 | F22: ='[1]الاقتصاد وادارة علاقات'!E19 -> 79 | G22: 5.52 | H22: ='[1]الحالات العملية سنة اولى'!P23 -> 10.60457143 | I22: ='[1]التمارين التطبيقية سنة اولى'!O23 -> 6.158 | J22: ='[1]فرنسي قانون وادارة مرافق عامة'!H19 -> 64.73 | K22: ='[1]فرنسي ايلول - ك1'!H19 -> 48.6 | L22: 1.1333 | M22: ='[1]إنكليزي قانون وادارة مرافق عامة'!H19 -> 74.12 | N22: ='[1]انكليزي ايلول - ك1'!J19 -> 75.25 | O22: 1.4937 | P22: ='[1]معلوماتية نيسان 2016'!F19 -> 83.5 | Q22: ='[1]معلوماتية كانون اول'!F19 -> 76 | R22: 1.595 | S22: 34.50457143
A23: 13 | B23: ='[1]بيانات تدريسية 13'!K14 -> سماره طه حسن | C23: ='[1]فترة التدريب الأولى'!N20 -> 26.5 | D23: 8.833333333 | E23: ='[1]القانون وادارة المرافق العامة'!E20 -> 68 | F23: ='[1]الاقتصاد وادارة علاقات'!E20 -> 62 | G23: 5.2 | H23: ='[1]الحالات العملية سنة اولى'!P24 -> 10.24266667 | I23: ='[1]التمارين التطبيقية سنة اولى'!O24 -> 6.500666667 | J23: ='[1]فرنسي قانون وادارة مرافق عامة'!H20 -> 64.94 | K23: ='[1]فرنسي ايلول - ك1'!H20 -> 57.45 | L23: 1.2239 | M23: ='[1]إنكليزي قانون وادارة مرافق عامة'!H20 -> 72.5 | N23: ='[1]انكليزي ايلول - ك1'!J20 -> 79.5 | O23: 1.52 | P23: ='[1]معلوماتية نيسان 2016'!F20 -> 91.5 | Q23: ='[1]معلوماتية كانون اول'!F20 -> 88 | R23: 1.795 | S23: 35.31556667
A24: 14 | B24: ='[1]بيانات تدريسية 13'!K15 -> سميره مروان الاشقر | C24: ='[1]فترة التدريب الأولى'!N21 -> 22.33 | D24: 7.443333333 | E24: ='[1]القانون وادارة المرافق العامة'!E21 -> 62 | F24: ='[1]الاقتصاد وادارة علاقات'!E21 -> 68 | G24: 5.2 | H24: ='[1]الحالات العملية سنة اولى'!P25 -> 10.44 | I24: ='[1]التمارين التطبيقية سنة اولى'!O25 -> 6.138666667 | J24: ='[1]فرنسي قانون وادارة مرافق عامة'!H21 -> 76.36 | K24: ='[1]فرنسي ايلول - ك1'!H21 -> 63.5 | L24: 1.3986 | M24: ='[1]إنكليزي قانون وادارة مرافق عامة'!H21 -> 72 | N24: ='[1]انكليزي ايلول - ك1'!J21 -> 64.06 | O24: 1.3606 | P24: ='[1]معلوماتية نيسان 2016'!F21 -> 84 | Q24: ='[1]معلوماتية كانون اول'!F21 -> 74 | R24: 1.58 | S24: 33.5612
A25: 15 | B25: ='[1]بيانات تدريسية 13'!K16 -> شادي محمد وسيم الخيمي | C25: ='[1]فترة التدريب الأولى'!N22 -> 23.9 | D25: 7.966666667 | E25: ='[1]القانون وادارة المرافق العامة'!E22 -> 59 | F25: ='[1]الاقتصاد وادارة علاقات'!E22 -> 80 | G25: 5.56 | H25: ='[1]الحالات العملية سنة اولى'!P26 -> 10.67695238 | I25: ='[1]التمارين التطبيقية سنة اولى'!O26 -> 5.904 | J25: ='[1]فرنسي قانون وادارة مرافق عامة'!H22 -> 54.84 | K25: ='[1]فرنسي ايلول - ك1'!H22 -> 47 | L25: 1.0184 | M25: ='[1]إنكليزي قانون وادارة مرافق عامة'!H22 -> 71.5 | N25: ='[1]انكليزي ايلول - ك1'!J22 -> 65.56 | O25: 1.3706 | P25: ='[1]معلوماتية نيسان 2016'!F22 -> 81.5 | Q25: ='[1]معلوماتية كانون اول'!F22 -> 82 | R25: 1.635 | S25: 34.13161905
A26: 16 | B26: ='[1]بيانات تدريسية 13'!K17 -> شذا حسن ابراهيم | C26: ='[1]فترة التدريب الأولى'!N23 -> 21.5 | D26: 7.166666667 | E26: ='[1]القانون وادارة المرافق العامة'!E23 -> 63 | F26: ='[1]الاقتصاد وادارة علاقات'!E23 -> 71 | G26: 5.36 | H26: ='[1]الحالات العملية سنة اولى'!P27 -> 10.44857143 | I26: ='[1]التمارين التطبيقية سنة اولى'!O27 -> 6.473333333 | J26: ='[1]فرنسي قانون وادارة مرافق عامة'!H23 -> 64.32 | K26: ='[1]فرنسي ايلول - ك1'!H23 -> 66.9 | L26: 1.3122 | M26: ='[1]إنكليزي قانون وادارة مرافق عامة'!H23 -> 70 | N26: ='[1]انكليزي ايلول - ك1'!J23 -> 83.4 | O26: 1.534 | P26: ='[1]معلوماتية نيسان 2016'!F23 -> 72.5 | Q26: ='[1]معلوماتية كانون اول'!F23 -> 60.5 | R26: 1.33 | S26: 33.62477143
A27: 17 | B27: ='[1]بيانات تدريسية 13'!K18 -> شذا احمد القاضي | C27: ='[1]فترة التدريب الأولى'!N24 -> 28 | D27: 9.333333333 | E27: ='[1]القانون وادارة المرافق العامة'!E24 -> 58 | F27: ='[1]الاقتصاد وادارة علاقات'!E24 -> 71 | G27: 5.16 | H27: ='[1]الحالات العملية سنة اولى'!P28 -> 10.75380952 | I27: ='[1]التمارين التطبيقية سنة اولى'!O28 -> 6.493333333 | J27: ='[1]فرنسي قانون وادارة مرافق عامة'!H24 -> 68.58 | K27: ='[1]فرنسي ايلول - ك1'!H24 -> 67.05 | L27: 1.3563 | M27: ='[1]إنكليزي قانون وادارة مرافق عامة'!H24 -> 88.5 | N27: ='[1]انكليزي ايلول - ك1'!J24 -> 87.2 | O27: 1.757 | P27: ='[1]معلوماتية نيسان 2016'!F24 -> 84 | Q27: ='[1]معلوماتية كانون اول'!F24 -> 77 | R27: 1.61 | S27: 36.46377619
A28: 18 | B28: ='[1]بيانات تدريسية 13'!K19 -> صبا نمر قصراوي | C28: ='[1]فترة التدريب الأولى'!N25 -> 25 | D28: 8.333333333 | E28: ='[1]القانون وادارة المرافق العامة'!E25 -> 45 | F28: ='[1]الاقتصاد وادارة علاقات'!E25 -> 56 | G28: 4.04 | H28: ='[1]الحالات العملية سنة اولى'!P29 -> 10.7952381 | I28: ='[1]التمارين التطبيقية سنة اولى'!O29 -> 6.688666667 | J28: ='[1]فرنسي قانون وادارة مرافق عامة'!H25 -> 65.01 | K28: ='[1]فرنسي ايلول - ك1'!H25 -> 61.75 | L28: 1.2676 | M28: ='[1]إنكليزي قانون وادارة مرافق عامة'!H25 -> 86.5 | N28: ='[1]انكليزي ايلول - ك1'!J25 -> 84.5 | O28: 1.71 | P28: ='[1]معلوماتية نيسان 2016'!F25 -> 79.5 | Q28: ='[1]معلوماتية كانون اول'!F25 -> 82 | R28: 1.615 | S28: 34.4498381
A29: 19 | B29: ='[1]بيانات تدريسية 13'!K20 -> عبير علي سلوم | C29: ='[1]فترة التدريب الأولى'!N26 -> 23.6 | D29: 7.866666667 | E29: ='[1]القانون وادارة المرافق العامة'!E26 -> 67 | F29: ='[1]الاقتصاد وادارة علاقات'!E26 -> 78 | G29: 5.8 | H29: ='[1]الحالات العملية سنة اولى'!P30 -> 10.4952381 | I29: ='[1]التمارين التطبيقية سنة اولى'!O30 -> 6.286666667 | J29: ='[1]فرنسي قانون وادارة مرافق عامة'!H26 -> 69.54 | K29: ='[1]فرنسي ايلول - ك1'!H26 -> 56 | L29: 1.2554 | M29: ='[1]إنكليزي قانون وادارة مرافق عامة'!H26 -> 70 | N29: ='[1]انكليزي ايلول - ك1'!J26 -> 70.26 | O29: 1.4026 | P29: ='[1]معلوماتية نيسان 2016'!F26 -> 81.5 | Q29: ='[1]معلوماتية كانون اول'!F26 -> 80.5 | R29: 1.62 | S29: 34.72657143
A30: 20 | B30: ='[1]بيانات تدريسية 13'!K21 -> علا محمد ميهوب | C30: ='[1]فترة التدريب الأولى'!N27 -> 23.3 | D30: 7.766666667 | E30: ='[1]القانون وادارة المرافق العامة'!E27 -> 52 | F30: ='[1]الاقتصاد وادارة علاقات'!E27 -> 64 | G30: 4.64 | H30: ='[1]الحالات العملية سنة اولى'!P31 -> 10.39333333 | I30: ='[1]التمارين التطبيقية سنة اولى'!O31 -> 6.606 | J30: ='[1]فرنسي قانون وادارة مرافق عامة'!H27 -> 81.75 | K30: ='[1]فرنسي ايلول - ك1'!H27 -> 84.75 | L30: 1.665 | M30: ='[1]إنكليزي قانون وادارة مرافق عامة'!H27 -> 58 | N30: ='[1]انكليزي ايلول - ك1'!J27 -> 69.5 | O30: 1.275 | P30: ='[1]معلوماتية نيسان 2016'!F27 -> 60 | Q30: ='[1]معلوماتية كانون اول'!F27 -> 69.5 | R30: 1.295 | S30: 33.641
A31: 21 | B31: ='[1]بيانات تدريسية 13'!K22 -> غاده حسن أبو طاقيه | C31: ='[1]فترة التدريب الأولى'!N28 -> 24.6 | D31: 8.2 | E31: ='[1]القانون وادارة المرافق العامة'!E28 -> 52 | F31: ='[1]الاقتصاد وادارة علاقات'!E28 -> 69 | G31: 4.84 | H31: ='[1]الحالات العملية سنة اولى'!P32 -> 10.56190476 | I31: ='[1]التمارين التطبيقية سنة اولى'!O32 -> 6.654666667 | J31: ='[1]فرنسي قانون وادارة مرافق عامة'!H28 -> 84.65 | K31: ='[1]فرنسي ايلول - ك1'!H28 -> 83.1 | L31: 1.6775 | M31: ='[1]إنكليزي قانون وادارة مرافق عامة'!H28 -> 65 | N31: ='[1]انكليزي ايلول - ك1'!J28 -> 67.5 | O31: 1.325 | P31: ='[1]معلوماتية نيسان 2016'!F28 -> 90 | Q31: ='[1]معلوماتية كانون اول'!F28 -> 73 | R31: 1.63 | S31: 34.88907143
A32: 22 | B32: ='[1]بيانات تدريسية 13'!K23 -> غدي سمير البدوي | C32: ='[1]فترة التدريب الأولى'!N29 -> 25.5 | D32: 8.5 | E32: ='[1]القانون وادارة المرافق العامة'!E29 -> 56 | F32: ='[1]الاقتصاد وادارة علاقات'!E29 -> 76 | G32: 5.28 | H32: ='[1]الحالات العملية سنة اولى'!P33 -> 10.52171429 | I32: ='[1]التمارين التطبيقية سنة اولى'!O33 -> 6.460666667 | J32: ='[1]فرنسي قانون وادارة مرافق عامة'!H29 -> 74.69 | K32: ='[1]فرنسي ايلول - ك1'!H29 -> 60.45 | L32: 1.3514 | M32: ='[1]إنكليزي قانون وادارة مرافق عامة'!H29 -> 87.5 | N32: ='[1]انكليزي ايلول - ك1'!J29 -> 76 | O32: 1.635 | P32: ='[1]معلوماتية نيسان 2016'!F29 -> 79 | Q32: ='[1]معلوماتية كانون اول'!F29 -> 68 | R32: 1.47 | S32: 35.21878095
A33: 23 | B33: ='[1]بيانات تدريسية 13'!K24 -> لجين سليمان مرهج | C33: ='[1]فترة التدريب الأولى'!N30 -> 25.8 | D33: 8.6 | E33: ='[1]القانون وادارة المرافق العامة'!E30 -> 65 | F33: ='[1]الاقتصاد وادارة علاقات'!E30 -> 73 | G33: 5.52 | H33: ='[1]الحالات العملية سنة اولى'!P34 -> 10.61857143 | I33: ='[1]التمارين التطبيقية سنة اولى'!O34 -> 7.013333333 | J33: ='[1]فرنسي قانون وادارة مرافق عامة'!H30 -> 80.6 | K33: ='[1]فرنسي ايلول - ك1'!H30 -> 69.4 | L33: 1.5 | M33: ='[1]إنكليزي قانون وادارة مرافق عامة'!H30 -> 69 | N33: ='[1]انكليزي ايلول - ك1'!J30 -> 58.76 | O33: 1.2776 | P33: ='[1]معلوماتية نيسان 2016'!F30 -> 78.5 | Q33: ='[1]معلوماتية كانون اول'!F30 -> 76 | R33: 1.545 | S33: 36.07450476
A34: 24 | B34: ='[1]بيانات تدريسية 13'!K25 -> لمى محسن ابراهيم | C34: ='[1]فترة التدريب الأولى'!N31 -> 26 | D34: 8.666666667 | E34: ='[1]القانون وادارة المرافق العامة'!E31 -> 63 | F34: ='[1]الاقتصاد وادارة علاقات'!E31 -> 71 | G34: 5.36 | H34: ='[1]الحالات العملية سنة اولى'!P35 -> 10.37333333 | I34: ='[1]التمارين التطبيقية سنة اولى'!O35 -> 6.092 | J34: ='[1]فرنسي قانون وادارة مرافق عامة'!H31 -> 73.03 | K34: ='[1]فرنسي ايلول - ك1'!H31 -> 50.75 | L34: 1.2378 | M34: ='[1]إنكليزي قانون وادارة مرافق عامة'!H31 -> 82 | N34: ='[1]انكليزي ايلول - ك1'!J31 -> 68.1 | O34: 1.501 | P34: ='[1]معلوماتية نيسان 2016'!F31 -> 84.5 | Q34: ='[1]معلوماتية كانون اول'!F31 -> 77.5 | R34: 1.62 | S34: 34.8508
A35: 25 | B35: ='[1]بيانات تدريسية 13'!K26 -> محمد رمضان خلوف | C35: ='[1]فترة التدريب الأولى'!N32 -> 23.7 | D35: 7.9 | E35: ='[1]القانون وادارة المرافق العامة'!E32 -> 65 | F35: ='[1]الاقتصاد وادارة علاقات'!E32 -> 54 | G35: 4.76 | H35: ='[1]الحالات العملية سنة اولى'!P36 -> 10.49619048 | I35: ='[1]التمارين التطبيقية سنة اولى'!O36 -> 6.385333333 | J35: ='[1]فرنسي قانون وادارة مرافق عامة'!H32 -> 71.29 | K35: ='[1]فرنسي ايلول - ك1'!H32 -> 53.8 | L35: 1.2509 | M35: ='[1]إنكليزي قانون وادارة مرافق عامة'!H32 -> 74 | N35: ='[1]انكليزي ايلول - ك1'!J32 -> 67.4 | O35: 1.414 | P35: ='[1]معلوماتية نيسان 2016'!F32 -> 74.5 | Q35: ='[1]معلوماتية كانون اول'!F32 -> 51 | R35: 1.255 | S35: 33.46142381
A36: 26 | B36: ='[1]بيانات تدريسية 13'!K27 -> محمد فراس غسان ياسمينه | C36: ='[1]فترة التدريب الأولى'!N33 -> 26.4 | D36: 8.8 | E36: ='[1]القانون وادارة المرافق العامة'!E33 -> 66 | F36: ='[1]الاقتصاد وادارة علاقات'!E33 -> 80 | G36: 5.84 | H36: ='[1]الحالات العملية سنة اولى'!P37 -> 10.83 | I36: ='[1]التمارين التطبيقية سنة اولى'!O37 -> 5.780666667 | J36: ='[1]فرنسي قانون وادارة مرافق عامة'!H33 -> 76.58 | K36: ='[1]فرنسي ايلول - ك1'!H33 -> 56.7 | L36: 1.3328 | M36: ='[1]إنكليزي قانون وادارة مرافق عامة'!H33 -> 82.5 | N36: ='[1]انكليزي ايلول - ك1'!J33 -> 79.73 | O36: 1.6223 | P36: ='[1]معلوماتية نيسان 2016'!F33 -> 84.5 | Q36: ='[1]معلوماتية كانون اول'!F33 -> 90 | R36: 1.745 | S36: 35.95076667
A37: 27 | B37: ='[1]بيانات تدريسية 13'!K28 -> محمد يسير حلمي اللوجي | C37: ='[1]فترة التدريب الأولى'!N43 -> 22 | D37: 7.333333333 | E37: ='[1]القانون وادارة المرافق العامة'!E34 -> 57 | F37: ='[1]الاقتصاد وادارة علاقات'!E34 -> 78 | G37: 5.4 | H37: ='[1]الحالات العملية سنة اولى'!P46 -> 10.68142857 | I37: ='[1]التمارين التطبيقية سنة اولى'!O46 -> 6.435333333 | J37: ='[1]فرنسي قانون وادارة مرافق عامة'!H34 -> 41.6 | K37: ='[1]فرنسي ايلول - ك1'!H34 -> 47.85 | L37: 0.8945 | M37: ='[1]إنكليزي قانون وادارة مرافق عامة'!H34 -> 51.25 | N37: ='[1]انكليزي ايلول - ك1'!J34 -> 60.5 | O37: 1.1175 | P37: ='[1]معلوماتية نيسان 2016'!F34 -> 83 | Q37: ='[1]معلوماتية كانون اول'!F34 -> 71 | R37: 1.54 | S37: 33.40209524
A38: 28 | B38: ='[1]بيانات تدريسية 13'!K29 -> منار احمد شعبان | C38: ='[1]فترة التدريب الأولى'!N44 -> 26.9 | D38: =C38/3 -> 8.966666667 | E38: ='[1]القانون وادارة المرافق العامة'!E35 -> 51 | F38: ='[1]الاقتصاد وادارة علاقات'!E35 -> 70 | G38: 4.84 | H38: ='[1]الحالات العملية سنة اولى'!P47 -> 10.62361905 | I38: ='[1]التمارين التطبيقية سنة اولى'!O47 -> 5.644666667 | J38: ='[1]فرنسي قانون وادارة مرافق عامة'!H35 -> 68.66 | K38: ='[1]فرنسي ايلول - ك1'!H35 -> 54.45 | L38: 1.2311 | M38: ='[1]إنكليزي قانون وادارة مرافق عامة'!H35 -> 82 | N38: ='[1]انكليزي ايلول - ك1'!J35 -> 79 | O38: 1.61 | P38: ='[1]معلوماتية نيسان 2016'!F35 -> 80 | Q38: ='[1]معلوماتية كانون اول'!F35 -> 67 | R38: 1.47 | S38: =(R38+O38+L38+I38+H38+G38+D38) -> 34.38605238
A39: 29 | B39: ='[1]بيانات تدريسية 13'!K30 -> نرجس فواز عيسى | C39: ='[1]فترة التدريب الأولى'!N45 -> 26.5 | D39: =C39/3 -> 8.833333333 | E39: ='[1]القانون وادارة المرافق العامة'!E36 -> 64 | F39: ='[1]الاقتصاد وادارة علاقات'!E36 -> 82 | G39: 5.84 | H39: ='[1]الحالات العملية سنة اولى'!P48 -> 10.82380952 | I39: ='[1]التمارين التطبيقية سنة اولى'!O48 -> 6.583333333 | J39: ='[1]فرنسي قانون وادارة مرافق عامة'!H36 -> 85.39 | K39: ='[1]فرنسي ايلول - ك1'!H36 -> 78.5 | L39: 1.6389 | M39: ='[1]إنكليزي قانون وادارة مرافق عامة'!H36 -> 86 | N39: ='[1]انكليزي ايلول - ك1'!J36 -> 88 | O39: 1.74 | P39: ='[1]معلوماتية نيسان 2016'!F36 -> 94 | Q39: ='[1]معلوماتية كانون اول'!F36 -> 84 | R39: 1.78 | S39: =(R39+O39+L39+I39+H39+G39+D39) -> 37.23937619
A41: لجنة الرصد | N41: عميد المعهد الوطني للإدارة العامة
N43: الدكتور فواز صالوم حموي
A46: نتائج متدربي الدورة التدريسية الثالثة عشرة خلال السنة الأولى
A48: تسلسل | B48: الاسم الثلاثي | C48: فترة التدريب الأولى (10) درجات | E48: مرحلة التأهيل الأكاديمي والتطبيقي (8) درجات | H48: الحالات العملية (12) درجات | I48: تمارين تطبيقية (8) درجات | J48: اللغة الأجنبية (4) درجات | P48: المعلوماتية (2) درجة | S48: المجموع النهائي (44) درجة
E49: الوحـــدة الأولى "القانون وإدارة المرافق العامة" | F49: الوحـــــــدة الثانية "الاقتصاد والمالية العامة وإدارة علاقات التعاون الدولي" | G49: المجموع | J49: اللغة الفرنسية (2) درجة | M49: اللغة الانكليزية (2) درجة
J50: امتحان اول | K50: امتحان ثاني | L50: الدرجة | M50: امتحان اول | N50: امتحان ثاني | O50: الدرجة | P50: امتحان اول | Q50: امتحان ثاني | R50: الدرجة
A52: 30 | B52: ='[1]بيانات تدريسية 13'!K31 -> نسرين احمد المصطفى | C52: ='[1]فترة التدريب الأولى'!N46 -> 25 | D52: =C52/3 -> 8.333333333 | E52: ='[1]القانون وادارة المرافق العامة'!E37 -> 54 | F52: ='[1]الاقتصاد وادارة علاقات'!E37 -> 70 | G52: =((E52/25+F52/25)) -> 4.96 | H52: ='[1]الحالات العملية سنة اولى'!P49 -> 10.67095238 | I52: ='[1]التمارين التطبيقية سنة اولى'!O49 -> 6.422666667 | J52: ='[1]فرنسي قانون وادارة مرافق عامة'!H37 -> 62.16 | K52: ='[1]فرنسي ايلول - ك1'!H37 -> 54.8 | L52: =(K52/100+J52/100) -> 1.1696 | M52: ='[1]إنكليزي قانون وادارة مرافق عامة'!H37 -> 82.25 | N52: ='[1]انكليزي ايلول - ك1'!J37 -> 83 | O52: =(N52/100+M52/100) -> 1.6525 | P52: ='[1]معلوماتية نيسان 2016'!F37 -> 85.5 | Q52: ='[1]معلوماتية كانون اول'!F37 -> 80.5 | R52: =(Q52/100+P52/100) -> 1.66 | S52: =(R52+O52+L52+I52+H52+G52+D52) -> 34.86905238
A53: 31 | B53: ='[1]بيانات تدريسية 13'!K32 -> نوار حبيب سميا | C53: ='[1]فترة التدريب الأولى'!N47 -> 24.4 | D53: 8.133333333 | E53: ='[1]القانون وادارة المرافق العامة'!E38 -> 55 | F53: ='[1]الاقتصاد وادارة علاقات'!E38 -> 69 | G53: 4.96 | H53: ='[1]الحالات العملية سنة اولى'!P50 -> 10.51809524 | I53: ='[1]التمارين التطبيقية سنة اولى'!O50 -> 5.558666667 | J53: ='[1]فرنسي قانون وادارة مرافق عامة'!H38 -> 69.12 | K53: ='[1]فرنسي ايلول - ك1'!H38 -> 27.85 | L53: 0.9697 | M53: ='[1]إنكليزي قانون وادارة مرافق عامة'!H38 -> 73.75 | N53: ='[1]انكليزي ايلول - ك1'!J38 -> 76 | O53: 1.4975 | P53: ='[1]معلوماتية نيسان 2016'!F38 -> 72.5 | Q53: ='[1]معلوماتية كانون اول'!F38 -> 43 | R53: 1.155 | S53: 32.79229524
A54: 32 | B54: ='[1]بيانات تدريسية 13'!K33 -> نور مصطفى عراط | C54: ='[1]فترة التدريب الأولى'!N48 -> 27.5 | D54: 9.166666667 | E54: ='[1]القانون وادارة المرافق العامة'!E39 -> 61 | F54: ='[1]الاقتصاد وادارة علاقات'!E39 -> 81 | G54: 5.68 | H54: ='[1]الحالات العملية سنة اولى'!P51 -> 10.94047619 | I54: ='[1]التمارين التطبيقية سنة اولى'!O51 -> 6.768 | J54: ='[1]فرنسي قانون وادارة مرافق عامة'!H39 -> 89.78 | K54: ='[1]فرنسي ايلول - ك1'!H39 -> 89.6 | L54: 1.7938 | M54: ='[1]إنكليزي قانون وادارة مرافق عامة'!H39 -> 88.5 | N54: ='[1]انكليزي ايلول - ك1'!J39 -> 92 | O54: 1.805 | P54: ='[1]معلوماتية نيسان 2016'!F39 -> 97.5 | Q54: ='[1]معلوماتية كانون اول'!F39 -> 93 | R54: 1.905 | S54: 38.05894286
A55: 33 | B55: ='[1]بيانات تدريسية 13'!K34 -> هبه محمد احسان | C55: ='[1]فترة التدريب الأولى'!N49 -> 23.8 | D55: 7.933333333 | E55: ='[1]القانون وادارة المرافق العامة'!E40 -> 57 | F55: ='[1]الاقتصاد وادارة علاقات'!E40 -> 70 | G55: 5.08 | H55: ='[1]الحالات العملية سنة اولى'!P52 -> 10.57238095 | I55: ='[1]التمارين التطبيقية سنة اولى'!O52 -> 6.135333333 | J55: ='[1]فرنسي قانون وادارة مرافق عامة'!H40 -> 71.68 | K55: ='[1]فرنسي ايلول - ك1'!H40 -> 49.7 | L55: 1.2138 | M55: ='[1]إنكليزي قانون وادارة مرافق عامة'!H40 -> 53 | N55: ='[1]انكليزي ايلول - ك1'!J40 -> 63.5 | O55: 1.165 | P55: ='[1]معلوماتية نيسان 2016'!F40 -> 81 | Q55: ='[1]معلوماتية كانون اول'!F40 -> 79.5 | R55: 1.605 | S55: =(R55+O55+L55+I55+H55+G55+D55) -> 33.70484762
A56: 34 | B56: ='[1]بيانات تدريسية 13'!K35 -> هبه أحمد الغزول | C56: ='[1]فترة التدريب الأولى'!N50 -> 25 | D56: 8.333333333 | E56: ='[1]القانون وادارة المرافق العامة'!E41 -> 69 | F56: ='[1]الاقتصاد وادارة علاقات'!E41 -> 87 | G56: =((E56/25+F56/25)) -> 6.24 | H56: ='[1]الحالات العملية سنة اولى'!P53 -> 10.576 | I56: ='[1]التمارين التطبيقية سنة اولى'!O53 -> 6.635333333 | J56: ='[1]فرنسي قانون وادارة مرافق عامة'!H41 -> 81.62 | K56: ='[1]فرنسي ايلول - ك1'!H41 -> 85.95 | L56: =(K56/100+J56/100) -> 1.6757 | M56: ='[1]إنكليزي قانون وادارة مرافق عامة'!H41 -> 90 | N56: ='[1]انكليزي ايلول - ك1'!J41 -> 95.5 | O56: =(N56/100+M56/100) -> 1.855 | P56: ='[1]معلوماتية نيسان 2016'!F41 -> 88.5 | Q56: ='[1]معلوماتية كانون اول'!F41 -> 87 | R56: =(Q56/100+P56/100) -> 1.755 | S56: 37.07036667
A57: 35 | B57: ='[1]بيانات تدريسية 13'!K36 -> هبه محمود سليم | C57: ='[1]فترة التدريب الأولى'!N51 -> 26.9 | D57: 8.966666667 | E57: ='[1]القانون وادارة المرافق العامة'!E42 -> 71 | F57: ='[1]الاقتصاد وادارة علاقات'!E42 -> 81 | G57: =((E57/25+F57/25)) -> 6.08 | H57: ='[1]الحالات العملية سنة اولى'!P54 -> 10.53504762 | I57: ='[1]التمارين التطبيقية سنة اولى'!O54 -> 6.430666667 | J57: ='[1]فرنسي قانون وادارة مرافق عامة'!H42 -> 75.91 | K57: ='[1]فرنسي ايلول - ك1'!H42 -> 79.7 | L57: =(K57/100+J57/100) -> 1.5561 | M57: ='[1]إنكليزي قانون وادارة مرافق عامة'!H42 -> 92.75 | N57: ='[1]انكليزي ايلول - ك1'!J42 -> 89.5 | O57: =(N57/100+M57/100) -> 1.8225 | P57: ='[1]معلوماتية نيسان 2016'!F42 -> 94 | Q57: ='[1]معلوماتية كانون اول'!F42 -> 67 | R57: =(Q57/100+P57/100) -> 1.61 | S57: 37.00098095
A58: 36 | B58: ='[1]بيانات تدريسية 13'!K37 -> هلا يوسف قرمش | C58: ='[1]فترة التدريب الأولى'!N52 -> 24.875 | D58: 8.291666667 | E58: ='[1]القانون وادارة المرافق العامة'!E43 -> 63 | F58: ='[1]الاقتصاد وادارة علاقات'!E43 -> 65 | G58: 5.12 | H58: ='[1]الحالات العملية سنة اولى'!P55 -> 10.5 | I58: ='[1]التمارين التطبيقية سنة اولى'!O55 -> 6.258666667 | J58: ='[1]فرنسي قانون وادارة مرافق عامة'!H43 -> 67.23 | K58: ='[1]فرنسي ايلول - ك1'!H43 -> 55.2 | L58: 1.2243 | M58: ='[1]إنكليزي قانون وادارة مرافق عامة'!H43 -> 67.75 | N58: ='[1]انكليزي ايلول - ك1'!J43 -> 71 | O58: 1.3875 | P58: ='[1]معلوماتية نيسان 2016'!F43 -> 88 | Q58: ='[1]معلوماتية كانون اول'!F43 -> 61.5 | R58: 1.495 | S58: 34.27713333
A59: 37 | B59: ='[1]بيانات تدريسية 13'!K38 -> هنادي صبحي الكل | C59: ='[1]فترة التدريب الأولى'!N53 -> 22.5 | D59: 7.5 | E59: ='[1]القانون وادارة المرافق العامة'!E44 -> 58 | F59: ='[1]الاقتصاد وادارة علاقات'!E44 -> 83 | G59: 5.64 | H59: ='[1]الحالات العملية سنة اولى'!P56 -> 10.68904762 | I59: ='[1]التمارين التطبيقية سنة اولى'!O56 -> 6.468 | J59: ='[1]فرنسي قانون وادارة مرافق عامة'!H44 -> 78.58 | K59: ='[1]فرنسي ايلول - ك1'!H44 -> 83.45 | L59: 1.6203 | M59: ='[1]إنكليزي قانون وادارة مرافق عامة'!H44 -> 90 | N59: ='[1]انكليزي ايلول - ك1'!J44 -> 89.5 | O59: 1.795 | P59: ='[1]معلوماتية نيسان 2016 (2)'!F44 -> 83 | Q59: ='[1]معلوماتية كانون اول'!F44 -> 87 | R59: 1.7 | S59: 35.41234762
A60: 38 | B60: ='[1]بيانات تدريسية 13'!K39 -> هيثم عبد الكريم اسكندر | C60: ='[1]فترة التدريب الأولى'!N54 -> 23.5 | D60: 7.833333333 | E60: ='[1]القانون وادارة المرافق العامة'!E45 -> 61 | F60: ='[1]الاقتصاد وادارة علاقات'!E45 -> 71 | G60: 5.28 | H60: ='[1]الحالات العملية سنة اولى'!P57 -> 10.4247619 | I60: ='[1]التمارين التطبيقية سنة اولى'!O57 -> 6.142 | J60: ='[1]فرنسي قانون وادارة مرافق عامة'!H45 -> 58.91 | K60: ='[1]فرنسي ايلول - ك1'!H45 -> 52.5 | L60: 1.1141 | M60: ='[1]إنكليزي قانون وادارة مرافق عامة'!H45 -> 54.25 | N60: ='[1]انكليزي ايلول - ك1'!J45 -> 59.5 | O60: 1.1375 | P60: ='[1]معلوماتية نيسان 2016'!F45 -> 79.5 | Q60: ='[1]معلوماتية كانون اول'!F45 -> 58.5 | R60: 1.38 | S60: 33.31169524
A61: 39 | B61: ='[1]بيانات تدريسية 13'!K40 -> وفاء بسيم عنقا | C61: ='[1]فترة التدريب الأولى'!N55 -> 24.5 | D61: 8.166666667 | E61: ='[1]القانون وادارة المرافق العامة'!E46 -> 62 | F61: ='[1]الاقتصاد وادارة علاقات'!E46 -> 70 | G61: 5.28 | H61: ='[1]الحالات العملية سنة اولى'!P58 -> 10.45409524 | I61: ='[1]التمارين التطبيقية سنة اولى'!O58 -> 6.242 | J61: ='[1]فرنسي قانون وادارة مرافق عامة'!H46 -> 79.32 | K61: ='[1]فرنسي ايلول - ك1'!H46 -> 65.55 | L61: 1.4487 | M61: ='[1]إنكليزي قانون وادارة مرافق عامة'!H46 -> 73.5 | N61: ='[1]انكليزي ايلول - ك1'!J46 -> 84.5 | O61: 1.58 | P61: ='[1]معلوماتية نيسان 2016'!F46 -> 88 | Q61: ='[1]معلوماتية كانون اول'!F46 -> 82 | R61: 1.7 | S61: 34.8714619
A63: دمشق في 16 / 02 / 2017
A65: لجنة الرصد | N65: عميد المعهد الوطني للإدارة العامة
N67: الدكتور فواز صالوم حموي

Sheet ورقة2
A1: الجمهورية العربية السورية
A2: وزارة التعليم العالي
A3: المعهد الوطني للإدارة العامة
A5: نتائج متدربي الدورة التدريسية الثالثة عشرة خلال السنة الثانية
A8: تسلسل | B8: الاسم الثلاثي | C8: مرحلة التأهيل الأكاديمي والتطبيقي (6) درجات | G8: الحالات العملية (6) درجات | H8: تمارين تطبيقية (4) درجات | I8: مرحلة التدريب الثانية (20) درجة | K8: البحث التطبيقي (15) درجات | L8: اللغة الأجنبية (4) درجات | R8: المعلوماتية (1) درجة | U8: المجموع النهائي (56) درجة
C9: الوحـــدة الثالثـــــــــة "التخطيط واللامركزية الاقليمية" | D9: الوحـــــــدة الرابعة "تطوير الأداء المؤسساتي والعدالة الاجتماعية" | E9: المجموع | L9: اللغة الفرنسية (2) درجة | O9: اللغة الانكليزية (2) درجة
L10: امتحان ثالث | M10: امتحان رابع | N10: العلامة | O10: امتحان ثالث | P10: امتحان رابع | Q10: العلامة | R10: الامتحان | S10: العلامة
C11: 100 | D11: 100 | F11: =(C11+D11)/33.333 -> 6.000060001 | G11: 6 | H11: 4 | I11: 30 | J11: =I11/1.5 -> 20 | K11: 15 | L11: 100 | M11: 100 | N11: =L11/100+M11/100 -> 2 | O11: 100 | P11: 100 | Q11: =O11/100+P11/100 -> 2 | R11: 100 | T11: =R11/100 -> 1 | U11: =T11+Q11+N11+K11+J11+H11+G11+F11 -> 56.00006
A12: 1 | B12: ='[1]بيانات تدريسية 13'!K2 -> إحسان خالد خليل | C12: =[1]تخطيط!E8 -> 86 | D12: ='[1]تطوير اداء دفعة 13'!E8 -> 73 | F12: =(C12+D12)/33.333 -> 4.7700477 | G12: ='[1]الحالات العملية سنة ثانية'!G8 -> 5.766666667 | H12: ='[1]التمارين التطبيقية سنة ثاني'!H9 -> 3.641666667 | I12: ='[1]فترة التدريب الثاني'!F8 -> 27 | J12: =I12/1.5 -> 18 | K12: ='[1]بحث تطبيقي'!E8 -> 12.3 | L12: ='[1]فرنسي ك2 - نيسان'!H8 -> 40.06 | M12: ='[1]فرنسي بحث تطبيقي'!G8 -> 0 | N12: =L12/100+M12/100 -> 0.4006 | O12: ='[1]انكليزي ك2- نيسان'!J8 -> 74.75 | P12: ='[1]انكليزي بحث تطبيقي'!I8 -> 5 | Q12: =O12/100+P12/100 -> 0.7975 | R12: ='[1]معلوماتية نيسان 2017'!F8 -> 73.25 | T12: =R12/100 -> 0.7325 | U12: =T12+Q12+N12+K12+J12+H12+G12+F12 -> 46.40898103
A13: 2 | B13: ='[1]بيانات تدريسية 13'!K3 -> ايهاب عبد الرحمن القطريب | C13: =[1]تخطيط!E9 -> 77 | D13: ='[1]تطوير اداء دفعة 13'!E9 -> 74 | F13: =(C13+D13)/33.333 -> 4.5300453 | G13: ='[1]الحالات العملية سنة ثانية'!G9 -> 5.688888889 | H13: ='[1]التمارين التطبيقية سنة ثاني'!H10 -> 3.508333333 | I13: ='[1]فترة التدريب الثاني'!F9 -> 26 | J13: 17.33333333 | K13: ='[1]بحث تطبيقي'!E9 -> 12.5 | L13: ='[1]فرنسي ك2 - نيسان'!H9 -> 80.8 | M13: ='[1]فرنسي بحث تطبيقي'!G9 -> 69.93 | N13: =L13/100+M13/100 -> 1.5073 | O13: ='[1]انكليزي ك2- نيسان'!J9 -> 93 | P13: ='[1]انكليزي بحث تطبيقي'!I9 -> 95.5 | Q13: =O13/100+P13/100 -> 1.885 | R13: ='[1]معلوماتية نيسان 2017'!F9 -> 76 | T13: =R13/100 -> 0.76 | U13: =T13+Q13+N13+K13+J13+H13+G13+F13 -> 47.71290086
A14: 3 | B14: ='[1]بيانات تدريسية 13'!K4 -> ثائر علي ديوب | C14: =[1]تخطيط!E10 -> 68 | D14: ='[1]تطوير اداء دفعة 13'!E10 -> 75 | F14: 4.2900429 | G14: ='[1]الحالات العملية سنة ثانية'!G10 -> 5.712222222 | H14: ='[1]التمارين التطبيقية سنة ثاني'!H11 -> 3.466666667 | I14: ='[1]فترة التدريب الثاني'!F10 -> 29.5 | J14: 19.66666667 | K14: ='[1]بحث تطبيقي'!E10 -> 13 | L14: ='[1]فرنسي ك2 - نيسان'!H10 -> 80.7 | M14: ='[1]فرنسي بحث تطبيقي'!G10 -> 82.56 | N14: 1.6326 | O14: ='[1]انكليزي ك2- نيسان'!J10 -> 80 | P14: ='[1]انكليزي بحث تطبيقي'!I10 -> 72.33 | Q14: 1.5233 | R14: ='[1]معلوماتية نيسان 2017'!F10 -> 73 | T14: 0.73 | U14: 50.02149846
A15: 4 | B15: ='[1]بيانات تدريسية 13'!K5 -> حلا عبد الله علي | C15: =[1]تخطيط!E11 -> 77 | D15: ='[1]تطوير اداء دفعة 13'!E11 -> 69 | F15: 4.3800438 | G15: ='[1]الحالات العملية سنة ثانية'!G11 -> 5.775555556 | H15: ='[1]التمارين التطبيقية سنة ثاني'!H12 -> 3.679166667 | I15: ='[1]فترة التدريب الثاني'!F11 -> 27.5 | J15: 18.33333333 | K15: ='[1]بحث تطبيقي'!E11 -> 12.4 | L15: ='[1]فرنسي ك2 - نيسان'!H11 -> 56.24 | M15: ='[1]فرنسي بحث تطبيقي'!G11 -> 63.43 | N15: 1.1967 | O15: ='[1]انكليزي ك2- نيسان'!J11 -> 91.5 | P15: ='[1]انكليزي بحث تطبيقي'!I11 -> 82.5 | Q15: 1.74 | R15: ='[1]معلوماتية نيسان 2017'!F11 -> 78.5 | T15: 0.785 | U15: 48.28979936
A16: 5 | B16: ='[1]بيانات تدريسية 13'!K6 -> خالد عبد الرزاق سالم | C16: =[1]تخطيط!E12 -> 75 | D16: ='[1]تطوير اداء دفعة 13'!E12 -> 81 | F16: 4.6800468 | G16: ='[1]الحالات العملية سنة ثانية'!G12 -> 5.7 | H16: ='[1]التمارين التطبيقية سنة ثاني'!H13 -> 3.735 | I16: ='[1]فترة التدريب الثاني'!F12 -> 24.85 | J16: 16.56666667 | K16: ='[1]بحث تطبيقي'!E12 -> 12.7 | L16: ='[1]فرنسي ك2 - نيسان'!H12 -> 56.4 | M16: ='[1]فرنسي بحث تطبيقي'!G12 -> 55.31 | N16: 1.1171 | O16: ='[1]انكليزي ك2- نيسان'!J12 -> 81.5 | P16: ='[1]انكليزي بحث تطبيقي'!I12 -> 74.41 | Q16: 1.5591 | R16: ='[1]معلوماتية نيسان 2017'!F12 -> 75.5 | T16: 0.755 | U16: 46.81291347
A17: 6 | B17: ='[1]بيانات تدريسية 13'!K7 -> دارين عبد الحنان بلال | C17: =[1]تخطيط!E13 -> 81 | D17: ='[1]تطوير اداء دفعة 13'!E13 -> 50 | F17: 3.9300393 | G17: ='[1]الحالات العملية سنة ثانية'!G13 -> 5.816666667 | H17: ='[1]التمارين التطبيقية سنة ثاني'!H14 -> 3.654166667 | I17: ='[1]فترة التدريب الثاني'!F13 -> 25.5 | J17: 17 | K17: ='[1]بحث تطبيقي'!E13 -> 12.5 | L17: ='[1]فرنسي ك2 - نيسان'!H13 -> 64.15 | M17: ='[1]فرنسي بحث تطبيقي'!G13 -> 54.5 | N17: 1.1865 | O17: ='[1]انكليزي ك2- نيسان'!J13 -> 84 | P17: ='[1]انكليزي بحث تطبيقي'!I13 -> 34.25 | Q17: 1.1825 | R17: ='[1]معلوماتية نيسان 2017'!F13 -> 73.5 | T17: 0.735 | U17: 46.00487263
A18: 7 | B18: ='[1]بيانات تدريسية 13'!K8 -> دانيال عدنان علي | C18: =[1]تخطيط!E14 -> 82 | D18: ='[1]تطوير اداء دفعة 13'!E14 -> 69 | F18: 4.5300453 | G18: ='[1]الحالات العملية سنة ثانية'!G14 -> 5.761111111 | H18: ='[1]التمارين التطبيقية سنة ثاني'!H15 -> 3.8625 | I18: ='[1]فترة التدريب الثاني'!F14 -> 28.2 | J18: 18.8 | K18: ='[1]بحث تطبيقي'!E14 -> 13.2 | L18: ='[1]فرنسي ك2 - نيسان'!H14 -> 58.53 | M18: ='[1]فرنسي بحث تطبيقي'!G14 -> 54.62 | N18: 1.1315 | O18: ='[1]انكليزي ك2- نيسان'!J14 -> 80.5 | P18: ='[1]انكليزي بحث تطبيقي'!I14 -> 76.33 | Q18: 1.5683 | R18: ='[1]معلوماتية نيسان 2017'!F14 -> 87.5 | T18: 0.875 | U18: 49.72845641
A19: 8 | B19: ='[1]بيانات تدريسية 13'!K9 -> ديما أيمن طاهر | C19: =[1]تخطيط!E15 -> 68 | D19: ='[1]تطوير اداء دفعة 13'!E15 -> 66 | F19: 4.0200402 | G19: ='[1]الحالات العملية سنة ثانية'!G15 -> 5.816666667 | H19: ='[1]التمارين التطبيقية سنة ثاني'!H16 -> 3.454166667 | I19: ='[1]فترة التدريب الثاني'!F15 -> 28.5 | J19: 19 | K19: ='[1]بحث تطبيقي'!E15 -> 13 | L19: ='[1]فرنسي ك2 - نيسان'!H15 -> 67.61 | M19: ='[1]فرنسي بحث تطبيقي'!G15 -> 69.12 | N19: 1.3673 | O19: ='[1]انكليزي ك2- نيسان'!J15 -> 62.5 | P19: ='[1]انكليزي بحث تطبيقي'!I15 -> 58.33 | Q19: 1.2083 | R19: ='[1]معلوماتية نيسان 2017'!F15 -> 91.5 | T19: 0.915 | U19: 48.78147353
A20: 9 | B20: ='[1]بيانات تدريسية 13'!K10 -> راما محمد طوبال علي | C20: =[1]تخطيط!E16 -> 67 | D20: ='[1]تطوير اداء دفعة 13'!E16 -> 73 | F20: 4.200042 | G20: ='[1]الحالات العملية سنة ثانية'!G16 -> 5.696666667 | H20: ='[1]التمارين التطبيقية سنة ثاني'!H17 -> 3.725833333 | I20: ='[1]فترة التدريب الثاني'!F16 -> 24.5 | J20: 16.33333333 | K20: ='[1]بحث تطبيقي'!E16 -> 12.6 | L20: ='[1]فرنسي ك2 - نيسان'!H16 -> 67.95 | M20: ='[1]فرنسي بحث تطبيقي'!G16 -> 58.62 | N20: 1.2657 | O20: ='[1]انكليزي ك2- نيسان'!J16 -> 82 | P20: ='[1]انكليزي بحث تطبيقي'!I16 -> 80.83 | Q20: 1.6283 | R20: ='[1]معلوماتية نيسان 2017'!F16 -> 82.25 | T20: 0.8225 | U20: 46.27237533
A21: 10 | B21: ='[1]بيانات تدريسية 13'!K11 -> رشا محمود عباس | C21: =[1]تخطيط!E17 -> 76 | D21: ='[1]تطوير اداء دفعة 13'!E17 -> 47 | F21: 3.6900369 | G21: ='[1]الحالات العملية سنة ثانية'!G17 -> 5.822222222 | H21: ='[1]التمارين التطبيقية سنة ثاني'!H18 -> 3.285833333 | I21: ='[1]فترة التدريب الثاني'!F17 -> 26.45 | J21: 17.63333333 | K21: ='[1]بحث تطبيقي'!E17 -> 13 | L21: ='[1]فرنسي ك2 - نيسان'!H17 -> 66.31 | M21: ='[1]فرنسي بحث تطبيقي'!G17 -> 49.75 | N21: 1.1606 | O21: ='[1]انكليزي ك2- نيسان'!J17 -> 74.5 | P21: ='[1]انكليزي بحث تطبيقي'!I17 -> 74.33 | Q21: 1.4883 | R21: ='[1]معلوماتية نيسان 2017'!F17 -> 71.75 | T21: 0.7175 | U21: 46.79782579
A22: 11 | B22: ='[1]بيانات تدريسية 13'!K12 -> رنيم غسان سلطان | C22: =[1]تخطيط!E18 -> 0 | D22: ='[1]تطوير اداء دفعة 13'!E18 -> 0 | F22: 0 | G22: ='[1]الحالات العملية سنة ثانية'!G18 -> 0 | H22: ='[1]التمارين التطبيقية سنة ثاني'!H19 -> 0 | I22: ='[1]فترة التدريب الثاني'!F18 -> 0 | J22: 0 | K22: ='[1]بحث تطبيقي'!E18 -> 0 | L22: ='[1]فرنسي ك2 - نيسان'!H18 -> 0 | M22: ='[1]فرنسي بحث تطبيقي'!G18 -> 0 | N22: 0 | O22: ='[1]انكليزي ك2- نيسان'!J18 -> 4 | P22: ='[1]انكليزي بحث تطبيقي'!I18 -> 0 | Q22: 0.04 | R22: ='[1]معلوماتية نيسان 2017'!F18 -> 0 | T22: 0 | U22: 0.04
A23: 11 | B23: ='[1]بيانات تدريسية 13'!K13 -> رنيم ابراهيم صقر | C23: =[1]تخطيط!E19 -> 69 | D23: ='[1]تطوير اداء دفعة 13'!E19 -> 56 | F23: 3.7500375 | G23: ='[1]الحالات العملية سنة ثانية'!G19 -> 5.695555556 | H23: ='[1]التمارين التطبيقية سنة ثاني'!H20 -> 3.375833333 | I23: ='[1]فترة التدريب الثاني'!F19 -> 24.5 | J23: 16.33333333 | K23: ='[1]بحث تطبيقي'!E19 -> 12.7 | L23: ='[1]فرنسي ك2 - نيسان'!H19 -> 58.2 | M23: ='[1]فرنسي بحث تطبيقي'!G19 -> 67.5 | N23: 1.257 | O23: ='[1]انكليزي ك2- نيسان'!J19 -> 80.5 | P23: ='[1]انكليزي بحث تطبيقي'!I19 -> 78.75 | Q23: 1.5925 | R23: ='[1]معلوماتية نيسان 2017'!F19 -> 68.75 | T23: 0.6875 | U23: 45.39175972
A24: 12 | B24: ='[1]بيانات تدريسية 13'!K14 -> سماره طه حسن | C24: =[1]تخطيط!E20 -> 67 | D24: ='[1]تطوير اداء دفعة 13'!E20 -> 74 | F24: 4.2300423 | G24: ='[1]الحالات العملية سنة ثانية'!G20 -> 5.7 | H24: ='[1]التمارين التطبيقية سنة ثاني'!H21 -> 3.4625 | I24: ='[1]فترة التدريب الثاني'!F20 -> 27.27 | J24: 18.18 | K24: ='[1]بحث تطبيقي'!E20 -> 12.7 | L24: ='[1]فرنسي ك2 - نيسان'!H20 -> 70.3 | M24: ='[1]فرنسي بحث تطبيقي'!G20 -> 58.37 | N24: 1.2867 | O24: ='[1]انكليزي ك2- نيسان'!J20 -> 78.5 | P24: ='[1]انكليزي بحث تطبيقي'!I20 -> 73.5 | Q24: 1.52 | R24: ='[1]معلوماتية نيسان 2017'!F20 -> 74.5 | T24: 0.745 | U24: 47.8242423
A25: 13 | B25: ='[1]بيانات تدريسية 13'!K15 -> سميره مروان الاشقر | C25: =[1]تخطيط!E21 -> 64 | D25: ='[1]تطوير اداء دفعة 13'!E21 -> 63 | F25: 3.8100381 | G25: ='[1]الحالات العملية سنة ثانية'!G21 -> 5.761111111 | H25: ='[1]التمارين التطبيقية سنة ثاني'!H22 -> 3.2125 | I25: ='[1]فترة التدريب الثاني'!F21 -> 23 | J25: 15.33333333 | K25: ='[1]بحث تطبيقي'!E21 -> 12.7 | L25: ='[1]فرنسي ك2 - نيسان'!H21 -> 65 | M25: ='[1]فرنسي بحث تطبيقي'!G21 -> 52.18 | N25: 1.1718 | O25: ='[1]انكليزي ك2- نيسان (2)'!J21 -> 70.5 | P25: ='[1]انكليزي بحث تطبيقي'!I21 -> 59 | Q25: 1.295 | R25: ='[1]معلوماتية نيسان 2017'!F21 -> 74.75 | T25: 0.7475 | U25: 44.03128254
A26: 14 | B26: ='[1]بيانات تدريسية 13'!K16 -> شادي محمد وسيم الخيمي | C26: =[1]تخطيط!E22 -> 74 | D26: ='[1]تطوير اداء دفعة 13'!E22 -> 49 | F26: 3.6900369 | G26: ='[1]الحالات العملية سنة ثانية'!G22 -> 5.822222222 | H26: ='[1]التمارين التطبيقية سنة ثاني'!H23 -> 3.205833333 | I26: ='[1]فترة التدريب الثاني'!F22 -> 25 | J26: 16.66666667 | K26: ='[1]بحث تطبيقي'!E22 -> 12.5 | L26: ='[1]فرنسي ك2 - نيسان'!H22 -> 41.4 | M26: ='[1]فرنسي بحث تطبيقي'!G22 -> 54.81 | N26: 0.9621 | O26: ='[1]انكليزي ك2- نيسان'!J22 -> 62.5 | P26: ='[1]انكليزي بحث تطبيقي'!I22 -> 64 | Q26: 1.265 | R26: ='[1]معلوماتية نيسان 2017'!F22 -> 73.75 | T26: 0.7375 | U26: 44.84935912
A27: 15 | B27: ='[1]بيانات تدريسية 13'!K17 -> شذا حسن ابراهيم | C27: =[1]تخطيط!E23 -> 70 | D27: ='[1]تطوير اداء دفعة 13'!E23 -> 43 | F27: 3.3900339 | G27: ='[1]الحالات العملية سنة ثانية'!G23 -> 5.688888889 | H27: ='[1]التمارين التطبيقية سنة ثاني'!H24 -> 3.359166667 | I27: ='[1]فترة التدريب الثاني'!F23 -> 24 | J27: 16 | K27: ='[1]بحث تطبيقي'!E23 -> 12 | L27: ='[1]فرنسي ك2 - نيسان'!H23 -> 57.75 | M27: ='[1]فرنسي بحث تطبيقي'!G23 -> 45.5 | N27: 1.0325 | O27: ='[1]انكليزي ك2- نيسان'!J23 -> 67.25 | P27: ='[1]انكليزي بحث تطبيقي'!I23 -> 59.75 | Q27: 1.27 | R27: ='[1]معلوماتية نيسان 2017'!F23 -> 68.5 | T27: 0.685 | U27: 43.42558946
A28: 16 | B28: ='[1]بيانات تدريسية 13'!K18 -> شذا احمد القاضي | C28: =[1]تخطيط!E24 -> 66 | D28: ='[1]تطوير اداء دفعة 13'!E24 -> 63 | F28: 3.8700387 | G28: ='[1]الحالات العملية سنة ثانية'!G24 -> 5.677777778 | H28: ='[1]التمارين التطبيقية سنة ثاني'!H25 -> 3.625583333 | I28: ='[1]فترة التدريب الثاني'!F24 -> 26.25 | J28: 17.5 | K28: ='[1]بحث تطبيقي'!E24 -> 13.5 | L28: ='[1]فرنسي ك2 - نيسان'!H24 -> 32.5 | M28: ='[1]فرنسي بحث تطبيقي'!G24 -> 72.43 | N28: 1.0493 | O28: ='[1]انكليزي ك2- نيسان'!J24 -> 84.25 | P28: ='[1]انكليزي بحث تطبيقي'!I24 -> 81.75 | Q28: 1.66 | R28: ='[1]معلوماتية نيسان 2017'!F24 -> 76.5 | T28: 0.765 | U28: 47.64769981
A29: 17 | B29: ='[1]بيانات تدريسية 13'!K19 -> صبا نمر قصراوي | C29: =[1]تخطيط!E25 -> 62 | D29: ='[1]تطوير اداء دفعة 13'!E25 -> 52 | F29: 3.4200342 | G29: ='[1]الحالات العملية سنة ثانية'!G25 -> 5.717777778 | H29: ='[1]التمارين التطبيقية سنة ثاني'!H26 -> 3.379166667 | I29: ='[1]فترة التدريب الثاني'!F25 -> 25.37 | J29: 16.91333333 | K29: ='[1]بحث تطبيقي'!E25 -> 12.8 | L29: ='[1]فرنسي ك2 - نيسان'!H25 -> 49.41 | M29: ='[1]فرنسي بحث تطبيقي'!G25 -> 57.18 | N29: 1.0659 | O29: ='[1]انكليزي ك2- نيسان'!J25 -> 81.75 | P29: ='[1]انكليزي بحث تطبيقي'!I25 -> 82.5 | Q29: 1.6425 | R29: ='[1]معلوماتية نيسان 2017'!F25 -> 68.25 | T29: 0.6825 | U29: 45.62121198
A30: 18 | B30: ='[1]بيانات تدريسية 13'!K20 -> عبير علي سلوم | C30: =[1]تخطيط!E26 -> 66 | D30: ='[1]تطوير اداء دفعة 13'!E26 -> 69 | F30: 4.0500405 | G30: ='[1]الحالات العملية سنة ثانية'!G26 -> 5.707777778 | H30: ='[1]التمارين التطبيقية سنة ثاني'!H27 -> 3.269166667 | I30: ='[1]فترة التدريب الثاني'!F26 -> 24.95 | J30: 16.63333333 | K30: ='[1]بحث تطبيقي'!E26 -> 13 | L30: ='[1]فرنسي ك2 - نيسان'!H26 -> 64.8 | M30: ='[1]فرنسي بحث تطبيقي'!G26 -> 60.75 | N30: 1.2555 | O30: ='[1]انكليزي ك2- نيسان'!J26 -> 71.5 | P30: ='[1]انكليزي بحث تطبيقي'!I26 -> 66 | Q30: 1.375 | R30: ='[1]معلوماتية نيسان 2017'!F26 -> 77.5 | T30: 0.775 | U30: 46.06581828
A31: 19 | B31: ='[1]بيانات تدريسية 13'!K21 -> علا محمد ميهوب | C31: =[1]تخطيط!E27 -> 62 | D31: ='[1]تطوير اداء دفعة 13'!E27 -> 59 | F31: 3.6300363 | G31: ='[1]الحالات العملية سنة ثانية'!G27 -> 5.695555556 | H31: ='[1]التمارين التطبيقية سنة ثاني'!H28 -> 3.0825 | I31: ='[1]فترة التدريب الثاني'!F27 -> 26.71 | J31: 17.80666667 | K31: ='[1]بحث تطبيقي'!E27 -> 12 | L31: ='[1]فرنسي ك2 - نيسان'!H27 -> 82.25 | M31: ='[1]فرنسي بحث تطبيقي'!G27 -> 88 | N31: 1.7025 | O31: ='[1]انكليزي ك2- نيسان'!J27 -> 67.25 | P31: ='[1]انكليزي بحث تطبيقي'!I27 -> 66 | Q31: 1.3325 | R31: ='[1]معلوماتية نيسان 2017'!F27 -> 71.5 | T31: 0.715 | U31: 45.96475852
A32: 20 | B32: ='[1]بيانات تدريسية 13'!K22 -> غاده حسن أبو طاقيه | C32: =[1]تخطيط!E28 -> 75 | D32: ='[1]تطوير اداء دفعة 13'!E28 -> 62 | F32: 4.1100411 | G32: ='[1]الحالات العملية سنة ثانية'!G28 -> 5.692222222 | H32: ='[1]التمارين التطبيقية سنة ثاني'!H29 -> 2.625 | I32: ='[1]فترة التدريب الثاني'!F28 -> 23 | J32: 15.33333333 | K32: ='[1]بحث تطبيقي'!E28 -> 12.5 | L32: ='[1]فرنسي ك2 - نيسان'!H28 -> 89.45 | M32: ='[1]فرنسي بحث تطبيقي'!G28 -> 84.5 | N32: 1.7395 | O32: ='[1]انكليزي ك2- نيسان'!J28 -> 79.25 | P32: ='[1]انكليزي بحث تطبيقي'!I28 -> 68.5 | Q32: 1.4775 | R32: ='[1]معلوماتية نيسان 2017'!F28 -> 84 | T32: 0.84 | U32: 44.31759666
A33: 21 | B33: ='[1]بيانات تدريسية 13'!K23 -> غدي سمير البدوي | C33: =[1]تخطيط!E29 -> 74 | D33: ='[1]تطوير اداء دفعة 13'!E29 -> 67 | F33: 4.2300423 | G33: ='[1]الحالات العملية سنة ثانية'!G29 -> 5.71 | H33: ='[1]التمارين التطبيقية سنة ثاني'!H30 -> 3.590833333 | I33: ='[1]فترة التدريب الثاني'!F29 -> 25.4 | J33: 16.93333333 | K33: ='[1]بحث تطبيقي'!E29 -> 12.7 | L33: ='[1]فرنسي ك2 - نيسان'!H29 -> 74.45 | M33: ='[1]فرنسي بحث تطبيقي'!G29 -> 67.87 | N33: 1.4232 | O33: ='[1]انكليزي ك2- نيسان'!J29 -> 81 | P33: ='[1]انكليزي بحث تطبيقي'!I29 -> 74.5 | Q33: 1.555 | R33: ='[1]معلوماتية نيسان 2017'!F29 -> 84.25 | T33: 0.8425 | U33: 46.98490897
A34: 22 | B34: ='[1]بيانات تدريسية 13'!K24 -> لجين سليمان مرهج | C34: =[1]تخطيط!E30 -> 56 | D34: ='[1]تطوير اداء دفعة 13'!E30 -> 58 | F34: 3.4200342 | G34: ='[1]الحالات العملية سنة ثانية'!G30 -> 5.703333333 | H34: ='[1]التمارين التطبيقية سنة ثاني'!H31 -> 3.774166667 | I34: ='[1]فترة التدريب الثاني'!F30 -> 28.5 | J34: 19 | K34: ='[1]بحث تطبيقي'!E30 -> 13.5 | L34: ='[1]فرنسي ك2 - نيسان'!H30 -> 62.65 | M34: ='[1]فرنسي بحث تطبيقي'!G30 -> 63.12 | N34: 1.2577 | O34: ='[1]انكليزي ك2- نيسان'!J30 -> 69.25 | P34: ='[1]انكليزي بحث تطبيقي'!I30 -> 56 | Q34: 1.2525 | R34: ='[1]معلوماتية نيسان 2017'!F30 -> 74 | T34: 0.74 | U34: 48.6477342
A35: 23 | B35: ='[1]بيانات تدريسية 13'!K25 -> لمى محسن ابراهيم | C35: =[1]تخطيط!E31 -> 83 | D35: ='[1]تطوير اداء دفعة 13'!E31 -> 42 | F35: 3.7500375 | G35: ='[1]الحالات العملية سنة ثانية'!G31 -> 5.674444444 | H35: ='[1]التمارين التطبيقية سنة ثاني'!H32 -> 3.673333333 | I35: ='[1]فترة التدريب الثاني'!F31 -> 29.47 | J35: 19.64666667 | K35: ='[1]بحث تطبيقي'!E31 -> 12.7 | L35: ='[1]فرنسي ك2 - نيسان'!H31 -> 58.6 | M35: ='[1]فرنسي بحث تطبيقي'!G31 -> 61.31 | N35: 1.1991 | O35: ='[1]انكليزي ك2- نيسان'!J31 -> 69.25 | P35: ='[1]انكليزي بحث تطبيقي'!I31 -> 64.5 | Q35: 1.3375 | R35: ='[1]معلوماتية نيسان 2017'!F31 -> 63.5 | T35: 0.635 | U35: 48.61608194
A36: 24 | B36: ='[1]بيانات تدريسية 13'!K26 -> محمد رمضان خلوف | C36: =[1]تخطيط!E32 -> 31 | D36: ='[1]تطوير اداء دفعة 13'!E32 -> 34 | F36: 1.9500195 | G36: ='[1]الحالات العملية سنة ثانية'!G32 -> 5.692222222 | H36: ='[1]التمارين التطبيقية سنة ثاني'!H33 -> 3.4625 | I36: ='[1]فترة التدريب الثاني'!F32 -> 23.9 | J36: 15.93333333 | K36: ='[1]بحث تطبيقي'!E32 -> 13.5 | L36: ='[1]فرنسي ك2 - نيسان'!H32 -> 61.2 | M36: ='[1]فرنسي بحث تطبيقي'!G32 -> 56.18 | N36: 1.1738 | O36: ='[1]انكليزي ك2- نيسان'!J32 -> 69 | P36: ='[1]انكليزي بحث تطبيقي'!I32 -> 57 | Q36: 1.26 | R36: ='[1]معلوماتية نيسان 2017'!F32 -> 63.5 | T36: 0.635 | U36: 43.60687506
A37: 25 | B37: ='[1]بيانات تدريسية 13'!K27 -> محمد فراس غسان ياسمينه | C37: =[1]تخطيط!E33 -> 73 | D37: ='[1]تطوير اداء دفعة 13'!E33 -> 85 | F37: 4.7400474 | G37: ='[1]الحالات العملية سنة ثانية'!G33 -> 5.788888889 | H37: ='[1]التمارين التطبيقية سنة ثاني'!H34 -> 3.79 | I37: ='[1]فترة التدريب الثاني'!F33 -> 26.5 | J37: 17.66666667 | K37: ='[1]بحث تطبيقي'!E33 -> 13 | L37: ='[1]فرنسي ك2 - نيسان'!H33 -> 61.05 | M37: ='[1]فرنسي بحث تطبيقي'!G33 -> 62.93 | N37: 1.2398 | O37: ='[1]انكليزي ك2- نيسان'!J33 -> 75 | P37: ='[1]انكليزي بحث تطبيقي'!I33 -> 72 | Q37: 1.47 | R37: ='[1]معلوماتية نيسان 2017'!F33 -> 77 | T37: 0.77 | U37: 48.46540296
A38: 26 | B38: ='[1]بيانات تدريسية 13'!K28 -> محمد يسير حلمي اللوجي | C38: =[1]تخطيط!E34 -> 77 | D38: ='[1]تطوير اداء دفعة 13'!E34 -> 79 | F38: 4.6800468 | G38: ='[1]الحالات العملية سنة ثانية'!G34 -> 5.694444444 | H38: ='[1]التمارين التطبيقية سنة ثاني'!H35 -> 3.579166667 | I38: ='[1]فترة التدريب الثاني'!F34 -> 23 | J38: 15.33333333 | K38: ='[1]بحث تطبيقي'!E34 -> 13 | L38: ='[1]فرنسي ك2 - نيسان'!H34 -> 46.91 | M38: ='[1]فرنسي بحث تطبيقي'!G34 -> 46 | N38: 0.9291 | O38: ='[1]انكليزي ك2- نيسان'!J34 -> 70.75 | P38: ='[1]انكليزي بحث تطبيقي'!I34 -> 52.26 | Q38: 1.2301 | R38: ='[1]معلوماتية نيسان 2017'!F34 -> 83.25 | T38: 0.8325 | U38: 45.27869124
A39: 27 | B39: ='[1]بيانات تدريسية 13'!K29 -> منار احمد شعبان | C39: =[1]تخطيط!E35 -> 70 | D39: ='[1]تطوير اداء دفعة 13'!E35 -> 86 | F39: 4.6800468 | G39: ='[1]الحالات العملية سنة ثانية'!G35 -> 5.703333333 | H39: ='[1]التمارين التطبيقية سنة ثاني'!H36 -> 3.6125 | I39: ='[1]فترة التدريب الثاني'!F35 -> 27 | J39: 18 | K39: ='[1]بحث تطبيقي'!E35 -> 12.7 | L39: ='[1]فرنسي ك2 - نيسان'!H35 -> 63.43 | M39: ='[1]فرنسي بحث تطبيقي'!G35 -> 58.37 | N39: 1.218 | O39: ='[1]انكليزي ك2- نيسان'!J35 -> 85.5 | P39: ='[1]انكليزي بحث تطبيقي'!I35 -> 76 | Q39: 1.615 | R39: ='[1]معلوماتية نيسان 2017'!F35 -> 71.25 | T39: 0.7125 | U39: 48.24138013
A40: 28 | B40: ='[1]بيانات تدريسية 13'!K30 -> نرجس فواز عيسى | C40: =[1]تخطيط!E36 -> 71 | D40: ='[1]تطوير اداء دفعة 13'!E36 -> 67 | F40: 4.1400414 | G40: ='[1]الحالات العملية سنة ثانية'!G36 -> 5.83 | H40: ='[1]التمارين التطبيقية سنة ثاني'!H37 -> 3.809166667 | I40: ='[1]فترة التدريب الثاني'!F46 -> 28 | J40: 18.66666667 | K40: ='[1]بحث تطبيقي'!E36 -> 13 | L40: ='[1]فرنسي ك2 - نيسان'!H36 -> 87.9 | M40: ='[1]فرنسي بحث تطبيقي'!G36 -> 84 | N40: 1.719 | O40: ='[1]انكليزي ك2- نيسان'!J36 -> 89.75 | P40: ='[1]انكليزي بحث تطبيقي'!I36 -> 75.75 | Q40: 1.655 | R40: ='[1]معلوماتية نيسان 2017'!F36 -> 84 | T40: 0.84 | U40: 49.65987473
A41: 29 | B41: ='[1]بيانات تدريسية 13'!K31 -> نسرين احمد المصطفى | C41: =[1]تخطيط!E37 -> 75 | D41: ='[1]تطوير اداء دفعة 13'!E37 -> 57 | F41: 3.9600396 | G41: ='[1]الحالات العملية سنة ثانية'!G37 -> 5.703333333 | H41: ='[1]التمارين التطبيقية سنة ثاني'!H38 -> 3.584166667 | I41: ='[1]فترة التدريب الثاني'!F47 -> 26.5 | J41: 17.66666667 | K41: ='[1]بحث تطبيقي'!E37 -> 13 | L41: ='[1]فرنسي ك2 - نيسان'!H37 -> 61.9 | M41: ='[1]فرنسي بحث تطبيقي'!G37 -> 62.75 | N41: 1.2465 | O41: ='[1]انكليزي ك2- نيسان'!J37 -> 78 | P41: ='[1]انكليزي بحث تطبيقي'!I37 -> 76.5 | Q41: 1.545 | R41: ='[1]معلوماتية نيسان 2017'!F37 -> 75.25 | T41: 0.7525 | U41: 47.45820627
A42: 30 | B42: ='[1]بيانات تدريسية 13'!K32 -> نوار حبيب سميا | C42: =[1]تخطيط!E38 -> 63 | D42: ='[1]تطوير اداء دفعة 13'!E38 -> 32 | F42: =(C42+D42)/33.333 -> 2.8500285 | G42: ='[1]الحالات العملية سنة ثانية'!G38 -> 5.755555556 | H42: ='[1]التمارين التطبيقية سنة ثاني'!H39 -> 3.515 | I42: ='[1]فترة التدريب الثاني'!F48 -> 27 | J42: =I42/1.5 -> 18 | K42: ='[1]بحث تطبيقي'!E38 -> 12.7 | L42: ='[1]فرنسي ك2 - نيسان'!H38 -> 55.41 | M42: ='[1]فرنسي بحث تطبيقي'!G38 -> 62.56 | N42: =L42/100+M42/100 -> 1.1797 | O42: ='[1]انكليزي ك2- نيسان'!J38 -> 77.25 | P42: ='[1]انكليزي بحث تطبيقي'!I38 -> 68.5 | Q42: =O42/100+P42/100 -> 1.4575 | R42: ='[1]معلوماتية نيسان 2017'!F38 -> 72.5 | T42: =R42/100 -> 0.725 | U42: =T42+Q42+N42+K42+J42+H42+G42+F42 -> 46.18278406
A43: 31 | B43: ='[1]بيانات تدريسية 13'!K33 -> نور مصطفى عراط | C43: =[1]تخطيط!E39 -> 70 | D43: ='[1]تطوير اداء دفعة 13'!E39 -> 83 | F43: =(C43+D43)/33.333 -> 4.5900459 | G43: ='[1]الحالات العملية سنة ثانية'!G39 -> 5.796666667 | H43: ='[1]التمارين التطبيقية سنة ثاني'!H40 -> 3.735833333 | I43: ='[1]فترة التدريب الثاني'!F49 -> 30 | J43: =I43/1.5 -> 20 | K43: ='[1]بحث تطبيقي'!E39 -> 13.5 | L43: ='[1]فرنسي ك2 - نيسان'!H39 -> 89.6 | M43: ='[1]فرنسي بحث تطبيقي'!G39 -> 88.87 | N43: =L43/100+M43/100 -> 1.7847 | O43: ='[1]انكليزي ك2- نيسان'!J39 -> 88.75 | P43: ='[1]انكليزي بحث تطبيقي'!I39 -> 92.25 | Q43: =O43/100+P43/100 -> 1.81 | R43: ='[1]معلوماتية نيسان 2017'!F39 -> 87.75 | T43: =R43/100 -> 0.8775 | U43: =T43+Q43+N43+K43+J43+H43+G43+F43 -> 52.0947459
A44: 32 | B44: ='[1]بيانات تدريسية 13'!K34 -> هبه محمد احسان | C44: =[1]تخطيط!E40 -> 70 | D44: ='[1]تطوير اداء دفعة 13'!E40 -> 47 | F44: =(C44+D44)/33.333 -> 3.5100351 | G44: ='[1]الحالات العملية سنة ثانية'!G40 -> 5.706666667 | H44: ='[1]التمارين التطبيقية سنة ثاني'!H41 -> 2.833333333 | I44: ='[1]فترة التدريب الثاني'!F50 -> 25.7 | J44: =I44/1.5 -> 17.13333333 | K44: ='[1]بحث تطبيقي'!E40 -> 12.4 | L44: ='[1]فرنسي ك2 - نيسان'!H40 -> 50.16 | M44: ='[1]فرنسي بحث تطبيقي'!G40 -> 55.18 | N44: =L44/100+M44/100 -> 1.0534 | O44: ='[1]انكليزي ك2- نيسان'!J40 -> 53.25 | P44: ='[1]انكليزي بحث تطبيقي'!I40 -> 51.25 | Q44: =O44/100+P44/100 -> 1.045 | R44: ='[1]معلوماتية نيسان 2017'!F40 -> 71 | T44: =R44/100 -> 0.71 | U44: =T44+Q44+N44+K44+J44+H44+G44+F44 -> 44.39176843
A46: لجنة الرصد | Q46: عميد المعهد الوطني للإدارة العامة
Q48: الدكتور فواز صالوم حموي
A50: نتائج متدربي الدورة التدريسية الثالثة عشرة خلال السنة الثانية
A53: تسلسل | B53: الاسم الثلاثي | C53: مرحلة التأهيل الأكاديمي والتطبيقي (6) درجات | G53: الحالات العملية (6) درجات | H53: تمارين تطبيقية (4) درجات | I53: مرحلة التدريب الثانية (20) درجة | K53: البحث التطبيقي (15) درجات | L53: اللغة الأجنبية (4) درجات | R53: المعلوماتية (1) درجة | U53: المجموع النهائي (56) درجة
C54: الوحـــدة الثالثـــــــــة "التخطيط واللامركزية الاقليمية" | D54: الوحـــــــدة الرابعة "تطوير الأداء المؤسساتي والعدالة الاجتماعية" | E54: المجموع | L54: اللغة الفرنسية (2) درجة | O54: اللغة الانكليزية (2) درجة
L55: امتحان ثالث | M55: امتحان رابع | N55: العلامة | O55: امتحان ثالث | P55: امتحان رابع | Q55: العلامة | R55: الامتحان | S55: العلامة
A56: 33 | B56: ='[1]بيانات تدريسية 13'!K35 -> هبه أحمد الغزول | C56: =[1]تخطيط!E41 -> 87 | D56: ='[1]تطوير اداء دفعة 13'!E41 -> 88 | F56: 5.250052501 | G56: ='[1]الحالات العملية سنة ثانية'!G41 -> 5.688888889 | H56: ='[1]التمارين التطبيقية سنة ثاني'!H42 -> 3.888333333 | I56: ='[1]فترة التدريب الثاني'!F51 -> 28 | J56: 18.66666667 | K56: ='[1]بحث تطبيقي'!E41 -> 13 | L56: ='[1]فرنسي ك2 - نيسان'!H41 -> 87.3 | M56: ='[1]فرنسي بحث تطبيقي'!G41 -> 79.25 | N56: 1.6655 | O56: ='[1]انكليزي ك2- نيسان'!J41 -> 93 | P56: ='[1]انكليزي بحث تطبيقي'!I41 -> 87.5 | Q56: 1.805 | R56: ='[1]معلوماتية نيسان 2017'!F41 -> 76.75 | T56: 0.7675 | U56: =T56+Q56+N56+K56+J56+H56+G56+F56 -> 50.73194139
A57: 34 | B57: ='[1]بيانات تدريسية 13'!K36 -> هبه محمود سليم | C57: =[1]تخطيط!E42 -> 80 | D57: ='[1]تطوير اداء دفعة 13'!E42 -> 75 | F57: 4.6500465 | G57: ='[1]الحالات العملية سنة ثانية'!G42 -> 5.822222222 | H57: ='[1]التمارين التطبيقية سنة ثاني'!H43 -> 3.861666667 | I57: ='[1]فترة التدريب الثاني'!F52 -> 28 | J57: 18.66666667 | K57: ='[1]بحث تطبيقي'!E42 -> 12.7 | L57: ='[1]فرنسي ك2 - نيسان'!H42 -> 75.73 | M57: ='[1]فرنسي بحث تطبيقي'!G42 -> 73.12 | N57: 1.4885 | O57: ='[1]انكليزي ك2- نيسان'!J42 -> 95.25 | P57: ='[1]انكليزي بحث تطبيقي'!I42 -> 90 | Q57: 1.8525 | R57: ='[1]معلوماتية نيسان 2017'!F42 -> 83.25 | T57: 0.8325 | U57: 49.87410206
A58: 35 | B58: ='[1]بيانات تدريسية 13'!K37 -> هلا يوسف قرمش | C58: =[1]تخطيط!E43 -> 58 | D58: ='[1]تطوير اداء دفعة 13'!E43 -> 42 | F58: 3.00003 | G58: ='[1]الحالات العملية سنة ثانية'!G43 -> 5.77 | H58: ='[1]التمارين التطبيقية سنة ثاني'!H44 -> 3.514166667 | I58: ='[1]فترة التدريب الثاني'!F53 -> 27 | J58: 18 | K58: ='[1]بحث تطبيقي'!E43 -> 13 | L58: ='[1]فرنسي ك2 - نيسان'!H43 -> 53.95 | M58: ='[1]فرنسي بحث تطبيقي'!G43 -> 55.5 | N58: 1.0945 | O58: ='[1]انكليزي ك2- نيسان'!J43 -> 77.5 | P58: ='[1]انكليزي بحث تطبيقي'!I43 -> 50.75 | Q58: 1.2825 | R58: ='[1]معلوماتية نيسان 2017'!F43 -> 69.25 | T58: 0.6925 | U58: 46.35369667
A59: 36 | B59: ='[1]بيانات تدريسية 13'!K38 -> هنادي صبحي الكل | C59: =[1]تخطيط!E44 -> 86 | D59: ='[1]تطوير اداء دفعة 13'!E44 -> 71 | F59: 4.7100471 | G59: ='[1]الحالات العملية سنة ثانية'!G44 -> 5.7 | H59: ='[1]التمارين التطبيقية سنة ثاني'!H45 -> 3.544166667 | I59: ='[1]فترة التدريب الثاني'!F54 -> 25 | J59: 16.66666667 | K59: ='[1]بحث تطبيقي'!E44 -> 13.2 | L59: ='[1]فرنسي ك2 - نيسان'!H44 -> 88.35 | M59: ='[1]فرنسي بحث تطبيقي'!G44 -> 85.37 | N59: 1.7372 | O59: ='[1]انكليزي ك2- نيسان'!J44 -> 92.5 | P59: ='[1]انكليزي بحث تطبيقي'!I44 -> 78 | Q59: 1.705 | R59: ='[1]معلوماتية نيسان 2017'!F44 -> 85 | T59: 0.85 | U59: 48.11308043
A60: 37 | B60: ='[1]بيانات تدريسية 13'!K39 -> هيثم عبد الكريم اسكندر | C60: =[1]تخطيط!E45 -> 76 | D60: ='[1]تطوير اداء دفعة 13'!E45 -> 71 | F60: 4.4100441 | G60: ='[1]الحالات العملية سنة ثانية'!G45 -> 5.698888889 | H60: ='[1]التمارين التطبيقية سنة ثاني'!H46 -> 2.6225 | I60: ='[1]فترة التدريب الثاني'!F55 -> 24.2 | J60: 16.13333333 | K60: ='[1]بحث تطبيقي'!E45 -> 13 | L60: ='[1]فرنسي ك2 - نيسان'!H45 -> 55.9 | M60: ='[1]فرنسي بحث تطبيقي'!G45 -> 51.12 | N60: 1.0702 | O60: ='[1]انكليزي ك2- نيسان'!J45 -> 65.25 | P60: ='[1]انكليزي بحث تطبيقي'!I45 -> 51.25 | Q60: 1.165 | R60: ='[1]معلوماتية نيسان 2017'!F45 -> 70.25 | T60: 0.7025 | U60: 44.80246632
A61: 38 | B61: ='[1]بيانات تدريسية 13'!K40 -> وفاء بسيم عنقا | C61: =[1]تخطيط!E46 -> 85 | D61: ='[1]تطوير اداء دفعة 13'!E46 -> 51 | F61: 4.0800408 | G61: ='[1]الحالات العملية سنة ثانية'!G46 -> 5.695555556 | H61: ='[1]التمارين التطبيقية سنة ثاني'!H47 -> 3.7975 | I61: ='[1]فترة التدريب الثاني'!F56 -> 25.9 | J61: 17.26666667 | K61: ='[1]بحث تطبيقي'!E46 -> 13.2 | L61: ='[1]فرنسي ك2 - نيسان'!H46 -> 79.78 | M61: ='[1]فرنسي بحث تطبيقي'!G46 -> 72 | N61: 1.5178 | O61: ='[1]انكليزي ك2- نيسان'!J46 -> 83.25 | P61: ='[1]انكليزي بحث تطبيقي'!I46 -> 82.75 | Q61: 1.66 | R61: ='[1]معلوماتية نيسان 2017'!F46 -> 76 | T61: 0.76 | U61: 47.97756302
A63: دمشق في ـا 10 / 12 / 2017
A65: لجنة الرصد | Q65: عميد المعهد الوطني للإدارة العامة
Q67: الدكتور فواز صالوم حموي

Sheet ورقة3
A8: اسم الطالب : ثائر ديوب | D8: اسم الأب : علي | F8: الدورة التدريسية الثالثة عشرة
A10: مكان وتاريخ الولادة : رحيبة 1980 | D10: اسم الأم : هدى عباس | F10: لعامي : 2016 - 2017
A12: اسم المقرر | B12: الدرجة المستحقة | C12: الدرجة | F12: ملاحظات
D13: رقماً | E13: كتابة
A14: فترة التدريب الأولى | B14: (10) درجة | C14: ='[1]علامات السنة الأولى'!C13 -> 26 | D14: ='[1]علامات السنة الأولى'!D13 -> 8.666666667 | E14: =[2]!ChangeThisNumber(D14) -> ثمانية درجة | F14: المؤسسة العامة لمياه الشرب والصرف الصحي بطرطوس
A16: مرحلة التأهيل الأكاديمي والتطبيقي | B16: (14) درجة | D16: ـــــــــــ
A17: الوحدة الاولى "القانون وإدارة المرافق العامة" | B17: ـــــــــــ | C17: ='[1]علامات السنة الأولى'!E13 -> 65 | D17: =(C17/25) -> 2.6 | E17: =[2]!ChangeThisNumber(D17) -> اثنان درجة و ستة جزء بالألف من الدرجة
A18: الوحدة الثانية والثالثة "لاقتصاد والمالية العامة وإدارة علاقات التعاون الدولي" | B18: ـــــــــــ | C18: =ورقة1!F13 -> 69 | D18: =(C18/25) -> 2.76 | E18: =[2]!ChangeThisNumber(D18) -> اثنان درجة و ستة و سبعون جزء بالألف من الدرجة
A19: الوحدة الرابعة "التخطيط واللامركزية الإدارية" | B19: ـــــــــــ | C19: =ورقة2!C14 -> 68 | D19: =(C19/33.333) -> 2.0400204 | E19: =[2]!ChangeThisNumber(D19) -> اثنان درجة
A20: الوحدة الخامسة "تطوير الأداء المؤسساتي والعدالة الاجتماعية" | B20: ـــــــــــ | C20: =ورقة2!D14 -> 75 | D20: =(C20/33.333) -> 2.2500225 | E20: =[2]!ChangeThisNumber(D20) -> اثنان درجة
E21: =[2]!ChangeThisNumber(D21) -> خطئ في الادخال
A22: مجموع علامات مرحلة التأهيل الأكاديمي والتطبيقي | B22: ـــــــــــ | D22: =(D17+D18+D19+D20) -> 9.6500429 | E22: =[2]!ChangeThisNumber(D22) -> تسعة درجة
A24: الحالات العملية | B24: (18) درجة | D24: ــــــــــــــــــــــــــ
A25: 1- إشكالية تنفيذ العقود. | B25: ـــــــــــ | C25: 16.99 | D25: =C25/10.5 -> 1.618095238 | E25: درجة واحدة وستمائة وثمانية عشرة بالألف.
A26: 2- تخطيط الموارد البشرية. | B26: ـــــــــــ | C26: 15.66 | D26: =C26/10.5 -> 1.491428571 | E26: درجة واحدة وأربعمائة وواحد وتسعون بالألف.
A27: 3- التخطيط الاستراتيجي – إدارة وقياس الأداء المؤسساتي. | B27: ـــــــــــ | C27: 14.7 | D27: 1.4 | E27: درجة واحدة وأربعمائة بالألف.
A28: 4- عقلنة الدعم وتوجيهه ومفهوم إعادة هندسة الاقتصاد. | B28: ـــــــــــ | C28: 16.99 | D28: 1.618095238 | E28: درجة واحدة وستمائة وثمانية عشرة بالألف.
A29: 5- مقاربة في الشراكة بين القطاع العام والخاص في ضوء قانون الشراكة. | B29: ـــــــــــ | C29: 16.8 | D29: 1.6 | E29: درجة واحدة وستمائة بالألف.
A30: 6- أثر التضخم في ظل الأزمة على الموازنة العامة للدولة. | B30: ـــــــــــ | C30: 16.77 | D30: 1.597142857 | E30: درجة واحدة وخمسمائة وسبعة وتسعون بالألف.
A31: 7 - معوقات التعاون الدولي. | B31: ـــــــــــ | C31: 16.675 | D31: 1.588095238 | E31: درجة واحدة وخمسمائة وثمانية وثمانون بالألف.
A32: 8- آلية وضع السياسات العامة. | B32: ـــــــــــ | C32: 15.9 | D32: =C32/9 -> 1.766666667 | E32: درجة واحدة وسبعمائة وسبعة وستون بالألف.
A33: 9- التنمية المحلية كأحد سياسات إعادة البناء. | B33: ـــــــــــ | C33: 17.85 | D33: =C33/9 -> 1.983333333 | E33: درجة واحدة وتسعمائة وثلاثة وثمانون بالألف.
A34: 10 - النظام الداخلي للجهة العامة في خدمة الأداء. | B34: ـــــــــــ | C34: 17.66 | D34: =C34/9 -> 1.962222222 | E34: درجة واحدة وتسعمائة واثنان وستون بالألف.
A36: مجموع علامات الحالات العملية | B36: ـــــــــــ | C36: =SUM(C25:C34) -> 165.995 | D36: 16.624 | E36: فقط ست عشرة درجة وستمائة وأربعة وعشرون بالألف لاغير.
A38: التمارين التطبيقية | B38: (12) درجة | D38: ــــــــــــــــــــــــــ
A39: 1 - محاكاة عمل مؤسسة اقتصادية. | B39: ـــــــــــ | C39: 10.19 | D39: =C39/15 -> 0.6793333333 | E39: ستمائة وتسعة وسبعون بالألف.
A40: 2 - اعتماد مستندي. | B40: ـــــــــــ | C40: 7.2 | D40: =C40/15 -> 0.48 | E40: أربعمائة وثمانون بالألف.
A41: 3 - التمييز بين انعدام وبطلان القرارات الإدارية. | B41: ـــــــــــ | C41: 9 | D41: 0.6 | E41: ستمائة بالألف.
A42: 4 - إدارة التوظيف. | B42: ـــــــــــ | C42: 12 | D42: 0.8 | E42: ثمانمائة بالألف.
A43: 5 - شروط التزود بمصادر الطاقة . | B43: ـــــــــــ | C43: 11 | D43: 0.7333333333 | E43: سبعمائة وثلاثة وثلاثون بالألف.
A44: 6 - تمويل السخان الشمسي. | B44: ـــــــــــ | C44: 11.8 | D44: 0.7866666667 | E44: سبعمائة وسبعة وثمانون بالألف.
A45: 7 - اقتصاديات المياه. | B45: ـــــــــــ | C45: 4.9 | D45: 0.3266666667 | E45: ثلاثمائة وسبعة وعشرون بالألف.
A46: 8 - استراتيجية إدارة الدين العام (سندات الخزينة). | B46: ـــــــــــ | C46: 10 | D46: 0.6666666667 | E46: ستمائة وسبعة وستون بالألف
A47: 9 - سياسة التصدير ودعم الصادرات. | B47: ـــــــــــ | C47: 9 | D47: 0.6 | E47: ستمائة بالألف.
A48: 10- المنظمات غير الحكومية الأجنبية. | B48: ـــــــــــ | C48: 10.45 | D48: 0.6966666667 | E48: ستمائة وسبعة وتسعون بالألف.
A49: 11 - التخطيط القطاعي للاستجابة الإنسانية. | B49: ـــــــــــ | C49: 10.3 | D49: =C49/12 -> 0.8583333333 | E49: ثمانمائة وثمانية وخمسون بالألف.
A50: 12 - التخطيط للتنمية البشرية والاجتماعية. | B50: ـــــــــــ | C50: 10 | D50: =C50/12 -> 0.8333333333 | E50: ثمانمائة وثلاثة وثلاثون بالألف.
A51: 13 - وضع نظام للترقية الوظيفية والمكافآت في جهة عامة. | B51: ـــــــــــ | C51: 11.3 | D51: =C51/12 -> 0.9416666667 | E51: تسعمائة واثنان وأربعون بالألف.
A52: 14 - نظام رصد وتقييم الحماية الاجتماعية. | B52: ـــــــــــ | C52: 10 | D52: =C52/12 -> 0.8333333333 | E52: ثمانمائة وثلاثة وثلاثون بالألف.
A54: مجموع علامات التمارين التطبيقية | B54: ـــــــــــ | C54: =SUM(C39:C52) -> 137.14 | D54: =SUM(D39:D52) -> 9.836 | E54: فقط تسع درجات وثمانمائة وستة وثلاثون بالألف لاغير.
A56: شؤون المتدربين والامتحانات | B56: وكيل العميد عميد المعهد الوطني للإدارة العامة
A58: خالد الزركلي | B58: الدكتور جميل صابوني الدكتور فواز صالوم حموي
A61: اسم المقرر | B61: الدرجة المستحقة | D61: الدرجة | F61: ملاحظات
D62: رقماً | E62: كتابة
A63: - فترة التدريب الثانية | B63: (20) درجة | C63: 29.5 | D63: =(C63/1.5) -> 19.66666667 | E63: فقط تسع عشرة درجة وستمائة وسبعة وستون بالألف لاغير. | F63: محافظة طرطوس
A65: - البحث التطبيقي | B65: (15) درجة | D65: ــــــــــــــــــــــــــ
A66: العلامة الفردية | B66: (5) درجات | C66: 4.5 | D66: =C66 -> 4.5 | E66: أربع درجات وخمسمائة بالألف.
A67: العلامة الجماعية | B67: (10) درجات | C67: 8.5 | D67: =C67 -> 8.5 | E67: ثماني درجات وخمسمائة بالألف.
A68: مجموع العلامتين | C68: =SUM(C66:C67) -> 13 | D68: =(D66+D67) -> 13 | E68: فقط ثلاث عشرة درجة لاغير.
A69: - اللغة الأجنبية | B69: ــــــــــــــــــــــــــ
A70: 1- اللغة الفرنسية | B70: (4) درجات
A71: الامتحان الأول | B71: ـــــــــــ | C71: 84.3 | D71: =(C71/100) -> 0.843 | E71: ثمانمائة وثلاثة وأربعون بالألف.
A72: الامتحان الثاني | B72: ـــــــــــ | C72: 80.4 | D72: =(C72/100) -> 0.804 | E72: ثمانمائة وأربعة بالألف.
A73: الامتحان الثالث | B73: ـــــــــــ | C73: 80.7 | D73: =(C73/100) -> 0.807 | E73: ثمانمائة وسبعة بالألف.
A74: الامتحان الرابع | B74: ـــــــــــ | C74: 82.56 | D74: =(C74/100) -> 0.8256 | E74: ثمانمائة وستة وعشرون بالألف.
A75: مجموع علامات اللغة الفرنسية | B75: ـــــــــــ | C75: =SUM(C71:C74) -> 327.96 | D75: =SUM(D71:D74) -> 3.2796 | E75: فقط ثلاث درجات ومائتان وثمانون بالألف لاغير.
A78: 2- اللغة الإنكليزية | B78: (4) درجات | D78: ــــــــــــــــــــــــــ
A79: الامتحان الأول | B79: ـــــــــــ | C79: 61 | D79: =(C79/100) -> 0.61 | E79: ستمائة وعشرة بالألف.
A80: الامتحان الثاني | B80: ـــــــــــ | C80: 78.25 | D80: =(C80/100) -> 0.7825 | E80: سبعمائة وثلاثة وثمانون بالألف.
A81: الامتحان الثالث | B81: ـــــــــــ | C81: 80 | D81: =(C81/100) -> 0.8 | E81: ثمانمائة بالألف.
A82: الامتحان الرابع | B82: ـــــــــــ | C82: 72.33 | D82: =(C82/100) -> 0.7233 | E82: سبعمائة وثلاثة وعشرون بالألف.
A83: مجموع علامات اللغة الإنكليزية | B83: ـــــــــــ | C83: =SUM(C79:C82) -> 291.58 | D83: =SUM(D79:D82) -> 2.9158 | E83: فقط درجتان وتسعمائة وستة عشرة بالألف لاغير.
A85: - المعلوماتية | B85: (3) درجات | D85: ــــــــــــــــــــــــــ
A86: الامتحان الأول | B86: ـــــــــــ | C86: 83.5 | D86: =C86/100 -> 0.835 | E86: ثمانمائة وخمسة وثلاثون بالألف.
A87: الامتحان الثاني | B87: ـــــــــــ | C87: 81.5 | D87: =(C87/100) -> 0.815 | E87: ثمانمائة وخمسة عشرة بالألف.
A88: الامتحان الثالث | B88: ـــــــــــ | C88: 73 | D88: =(C88/100) -> 0.73 | E88: سبعمائة وثلاثون بالألف.
A89: مجموع علامات المعلوماتية | B89: ـــــــــــ | D89: =SUM(D86:D88) -> 2.38 | E89: فقط درجتان وثلاثمائة وثمانون بالألف لاغير.
A92: المجموع العام | B92: (100) درجة | D92: =D83+D75+D89+D68+D63+D54+D36+D22+D14 -> 86.01877623 | E92: فقط ست وثمانون درجة وتسعة عشر بالألف لاغير.
A94: دمشق في 23 / 01 / 2018
A96: شؤون المتدربين والامتحانات | B96: وكيل العميد عميد المعهد الوطني للإدارة العامة
A98: خالد الزركلي | B98: الدكتور جميل صابوني الدكتور فواز صالوم حموي
